Workbook

Sheet Data
J1: 2000 | K1: =J1-2000 -> 0 | L1: 2000 | M1: =CORREL(L3:L285,I3:I285)^2 -> 0.745514602 | O1: -1990 | P1: 0.5497251132 | R1: 1 | S1: 1
A2: Depth (m) | B2: Age (yr) | D2: DT (K) | I2: [CO2] (ppm) | J2: Age (yr) | K2: DT (K) | L2: DT (K) | M2: DT (K) | O2: -1980 | P2: 0.5498637757 | R2: 1 | S2: 1
A3: 0 | B3: 0 | D3: 0 | H3: 2342 | I3: 284.7 | J3: 1010.5 | K3: -0.98 | L3: 1.13 | M3: -0.53 | O3: -1970 | P3: 0.5508460514 | R3: 1 | S3: 1
A4: 1 | B4: 17 | D4: 0 | H4: 3634 | I4: 272.8 | J4: 2960.433333 | K4: 0.3 | L4: 0.03 | M4: 1.13 | O4: -1960 | P4: 0.553595372
A5: 2 | B5: 35 | D5: 0 | H5: 3833 | I5: 268.1 | J5: 3712 | K5: -0.46 | L5: -0.22 | M5: 0.2 | O5: -1950 | P5: 0.559268067
A6: 3 | B6: 53 | D6: 0 | H6: 6220 | I6: 262.2 | J6: 5003.019231 | K6: -0.33 | L6: 0.59 | M6: -0.59 | O6: -1940 | P6: 0.5598346614
A7: 4 | B7: 72 | D7: 0 | H7: 7327 | I7: 254.6 | J7: 6753.041667 | K7: -0.29 | L7: 0.03 | M7: 0.3 | O7: -1930 | P7: 0.5611947427
A8: 5 | B8: 91 | D8: 0 | H8: 8113 | I8: 259.6 | J8: 7700.882353 | K8: 0.3 | L8: -0.47 | M8: -0.54 | O8: -1920 | P8: 0.5627683104
A9: 6 | B9: 110 | D9: 0 | H9: 10123 | I9: 261.6 | J9: 9079.595238 | K9: -0.47 | L9: -3.09 | M9: -0.15 | O9: -1910 | P9: 0.5619433013
A10: 7 | B10: 129 | D10: 0 | H10: 11013 | I10: 263.7 | J10: 10539.85 | K10: -0.23 | L10: -3.67 | M10: -2.37 | O10: -1900 | P10: 0.5606521822
A11: 8 | B11: 149 | D11: -0.81 | H11: 11326 | I11: 244.8 | J11: 11145.42857 | K11: -0.48 | L11: -3.17 | M11: -3.09 | O11: -1890 | P11: 0.5629665268
A12: 9 | B12: 170 | D12: 0.02 | H12: 11719 | I12: 238.3 | J12: 11487.33333 | K12: -1.83 | L12: -2.91 | M12: -3.76 | O12: -1880 | P12: 0.5627729225
A13: 10 | B13: 190 | D13: 0.36 | H13: 13405 | I13: 236.2 | J13: 12513.37931 | K13: -3.17 | L13: -4.74 | M13: -3.08 | O13: -1870 | P13: 0.5627014654
A14: 11 | B14: 211 | D14: -0.95 | H14: 13989 | I14: 225.3 | J14: 13653.09091 | K14: -2.06 | L14: -5.99 | M14: -4.14 | O14: -1860 | P14: 0.5638856117
A15: 12 | B15: 234 | D15: -1.84 | H15: 17695 | I15: 182.2 | J15: 15662.77778 | K15: -7.78 | L15: -8.45 | M15: -7.97 | O15: -1850 | P15: 0.564419441
A16: 13 | B16: 258 | D16: -1.09 | H16: 19988 | I16: 189.2 | J16: 18782.68966 | K16: -7.99 | L16: -8.12 | M16: -7.87 | O16: -1840 | P16: 0.5637067722
A17: 14 | B17: 281 | D17: -0.75 | H17: 22977 | I17: 191.6 | J17: 21447.75676 | K17: -7.92 | L17: -7.57 | M17: -8.63 | O17: -1830 | P17: 0.5635277449
A18: 15 | B18: 304 | D18: -0.22 | H18: 26303 | I18: 188.5 | J18: 24640.625 | K18: -7.24 | L18: -7.49 | M18: -8.64 | O18: -1820 | P18: 0.5653514115
A19: 16 | B19: 327 | D19: -0.48 | H19: 27062 | I19: 191.7 | J19: 26638.1 | K19: -8.64 | L19: -6.71 | M19: -8.52 | O19: -1810 | P19: 0.5661698247
A20: 17 | B20: 351 | D20: -0.75 | H20: 31447 | I20: 205.4 | J20: 29217.88462 | K20: -7.77 | L20: -7.07 | M20: -7.27 | O20: -1800 | P20: 0.5635910878
A21: 18 | B21: 375 | D21: 0.23 | H21: 33884 | I21: 209.1 | J21: 32631.80645 | K21: -7.36 | L21: -5.72 | M21: -5.87 | O21: -1790 | P21: 0.5653638707
A22: 19 | B22: 397 | D22: 1.33 | H22: 39880 | I22: 209.1 | J22: 36814.86842 | K22: -5.48 | L22: -4.81 | M22: -6.56 | O22: -1780 | P22: 0.5649455322
A23: 20 | B23: 420 | D23: 0.35 | H23: 44766 | I23: 189.3 | J23: 42245.14286 | K23: -6.55 | L23: -6.91 | M23: -7.64 | O23: -1770 | P23: 0.5698531195
A24: 21 | B24: 444 | D24: 0.18 | H24: 47024 | I24: 188.4 | J24: 45843.22222 | K24: -6.92 | L24: -6.24 | M24: -6.28 | O24: -1760 | P24: 0.5719156668
A25: 22 | B25: 469 | D25: -0.08 | H25: 48229 | I25: 210.1 | J25: 47589.875 | K25: -6.49 | L25: -5.7 | M25: -6.24 | O25: -1750 | P25: 0.5726129302
A26: 23 | B26: 495 | D26: -1.08 | H26: 49414 | I26: 215.7 | J26: 48786.6 | K26: -5.51 | L26: -5.6 | M26: -5.45 | O26: -1740 | P26: 0.5709906023
A27: 24 | B27: 523 | D27: -1.39 | H27: 51174 | I27: 190.4 | J27: 50257.66667 | K27: -3.77 | L27: -7.07 | M27: -5.56 | O27: -1730 | P27: 0.5715362448
A28: 25 | B28: 552 | D28: -1.61 | H28: 57068 | I28: 221.8 | J28: 54143.86486 | K28: -4.18 | L28: -6.04 | M28: -4.65 | O28: -1720 | P28: 0.574330999
A29: 26 | B29: 581 | D29: -0.9 | H29: 57799 | I29: 210.4 | J29: 57402.8 | K29: -5.51 | L29: -5.53 | M29: -5.66 | O29: -1710 | P29: 0.5749513431
A30: 27 | B30: 609 | D30: -0.6 | H30: 63687 | I30: 195.4 | J30: 60578.18841 | K30: -6.66 | L30: -8.15 | M30: -7.4 | O30: -1700 | P30: 0.5791177695
A31: 28 | B31: 637 | D31: -0.02 | H31: 65701 | I31: 191.4 | J31: 64613.17391 | K31: -8.15 | L31: -7.86 | M31: -6.88 | O31: -1690 | P31: 0.5775106878
A32: 29 | B32: 665 | D32: -0.18 | H32: 66883 | I32: 195 | J32: 66235.23077 | K32: -7.54 | L32: -7.59 | M32: -7.86 | O32: -1680 | P32: 0.579776672
A33: 30 | B33: 695 | D33: -1.23 | H33: 72849 | I33: 227.4 | J33: 69909.02899 | K33: -5.97 | L33: -5.85 | M33: -6.1 | O33: -1670 | P33: 0.5786907748
A34: 31 | B34: 726 | D34: -1.54 | H34: 75360 | I34: 229.2 | J34: 74088.43333 | K34: -5.12 | L34: -6.71 | M34: -4.83 | O34: -1660 | P34: 0.5791250826
A35: 32 | B35: 757 | D35: -0.85 | H35: 78995 | I35: 217.1 | J35: 77090.3913 | K35: -6.24 | L35: -4.67 | M35: -5.28 | O35: -1650 | P35: 0.5792462653
A36: 33 | B36: 788 | D36: -0.1 | H36: 80059 | I36: 221.8 | J36: 79481.46667 | K36: -3.66 | L36: -3.48 | M36: -4.75 | O36: -1640 | P36: 0.5778645547
A37: 34 | B37: 817 | D37: -0.17 | H37: 82858 | I37: 231 | J37: 81432.92308 | K37: -3.78 | L37: -3.49 | M37: -4.39 | O37: -1630 | P37: 0.5764594233
A38: 35 | B38: 848 | D38: -0.78 | H38: 84929 | I38: 241.1 | J38: 83850.6875 | K38: -3.29 | L38: -4.12 | M38: -3 | O38: -1620 | P38: 0.5775271932
A39: 36 | B39: 881 | D39: -0.78 | H39: 85727 | I39: 236.4 | J39: 85294 | K39: -3 | L39: -4.55 | M39: -3.91 | O39: -1610 | P39: 0.5771169067
A40: 37 | B40: 912 | D40: -0.17 | H40: 86323 | I40: 228.1 | J40: 85982.3 | K40: -3.76 | L40: -5.12 | M40: -4.4 | O40: -1600 | P40: 0.5781066432
A41: 38 | B41: 944 | D41: -0.25 | H41: 87180 | I41: 214.2 | J41: 86706.53846 | K41: -4.49 | L41: -4.65 | M41: -4.43 | O41: -1590 | P41: 0.5778782523
A42: 39 | B42: 976 | D42: -0.28 | H42: 88051 | I42: 217 | J42: 87589.5 | K42: -4.43 | L42: -5.61 | M42: -4.93 | O42: -1580 | P42: 0.5826528334
A43: 40 | B43: 1009 | D43: -0.81 | H43: 89363 | I43: 208 | J43: 88676.55556 | K43: -5.34 | L43: -5.81 | M43: -6.68 | O43: -1570 | P43: 0.5835828449
A44: 41 | B44: 1042 | D44: -0.05 | H44: 91691 | I44: 224.3 | J44: 90504.81818 | K44: -4.12 | L44: -4.68 | M44: -4.94 | O44: -1560 | P44: 0.5857629468
A45: 42 | B45: 1074 | D45: 0.27 | H45: 92460 | I45: 228.4 | J45: 92041.09091 | K45: -4.12 | L45: -3.66 | M45: -4.7 | O45: -1550 | P45: 0.5882448039
A46: 43 | B46: 1107 | D46: -0.83 | H46: 95349 | I46: 232.1 | J46: 93849.33333 | K46: -3.64 | L46: -4.35 | M46: -3.95 | O46: -1540 | P46: 0.5895828093
A47: 44 | B47: 1142 | D47: -0.65 | H47: 99842 | I47: 225.9 | J47: 97547.75758 | K47: -3.49 | L47: -2.49 | M47: -3.68 | O47: -1530 | P47: 0.5915407251
A48: 45 | B48: 1176 | D48: -0.27 | H48: 100833 | I48: 230.9 | J48: 100297.6667 | K48: -3.53 | L48: -2.33 | M48: -2.81 | O48: -1520 | P48: 0.5913927998
A49: 46 | B49: 1211 | D49: -0.65 | H49: 101829 | I49: 236.9 | J49: 101293.8235 | K49: -2.49 | L49: -4.5 | M49: -3.08 | O49: -1510 | P49: 0.592164898
A50: 47 | B50: 1247 | D50: -1.48 | H50: 103372 | I50: 228.2 | J50: 102561.44 | K50: -3.55 | L50: -4.2 | M50: -4.11 | O50: -1500 | P50: 0.5954990699
A51: 48 | B51: 1285 | D51: -1.64 | H51: 105213 | I51: 236.9 | J51: 104267.5926 | K51: -4.28 | L51: -4.88 | M51: -3.71 | O51: -1490 | P51: 0.5971240113
A52: 49 | B52: 1321 | D52: -0.4 | H52: 106203 | I52: 230.7 | J52: 105696.6 | K52: -3.37 | L52: -6.83 | M52: -4.4 | O52: -1480 | P52: 0.5994456927
A53: 50 | B53: 1356 | D53: 0.33 | H53: 108308 | I53: 238.2 | J53: 107187.8929 | K53: -6.71 | L53: -5.58 | M53: -6.27 | O53: -1470 | P53: 0.6019286
A54: 51 | B54: 1390 | D54: -0.05 | H54: 108994 | I54: 245.7 | J54: 108620.7778 | K54: -6.27 | L54: -6.25 | M54: -6.3 | O54: -1460 | P54: 0.6035169754
A55: 52 | B55: 1426 | D55: -0.13 | H55: 110253 | I55: 251.3 | J55: 109579.25 | K55: -5.58 | L55: -5.94 | M55: -6.08 | O55: -1450 | P55: 0.6061375642
A56: 53 | B56: 1461 | D56: -0.03 | H56: 111456 | I56: 256.8 | J56: 110791.875 | K56: -5.68 | L56: -4.85 | M56: -5.94 | O56: -1440 | P56: 0.6045268618
A57: 54 | B57: 1497 | D57: -0.46 | H57: 112577 | I57: 266.3 | J57: 111971.6 | K57: -5.82 | L57: -4.95 | M57: -4.86 | O57: -1430 | P57: 0.6058495994
A58: 55 | B58: 1535 | D58: -1 | H58: 113472 | I58: 261.4 | J58: 112990.9167 | K58: -4.85 | L58: -2.47 | M58: -4.39 | O58: -1420 | P58: 0.608471147
A59: 56 | B59: 1573 | D59: -0.96 | H59: 114082 | I59: 274.6 | J59: 113734.3333 | K59: -4.45 | L59: -3.08 | M59: -4.06 | O59: -1410 | P59: 0.6129743416
A60: 57 | B60: 1612 | D60: -1.33 | H60: 114738 | I60: 273.3 | J60: 114376 | K60: -4.6 | L60: -2.53 | M60: -2.47 | O60: -1400 | P60: 0.6144719998
A61: 58 | B61: 1652 | D61: -1.51 | H61: 116175 | I61: 262.5 | J61: 115447.5 | K61: -2.86 | L61: -0.94 | M61: -1.62 | O61: -1390 | P61: 0.6128504049
A62: 59 | B62: 1692 | D62: -0.88 | H62: 117519 | I62: 267.6 | J62: 116848.9091 | K62: -1.5 | L62: -1.07 | M62: -1.19 | O62: -1380 | P62: 0.6165194898
A63: 60 | B63: 1732 | D63: -1.06 | H63: 118396 | I63: 273.8 | J63: 117946.4 | K63: -1.46 | L63: -0.86 | M63: -0.95 | O63: -1370 | P63: 0.6186043262
A64: 61 | B64: 1772 | D64: -1.21 | H64: 119273 | I64: 272 | J64: 118798.8 | K64: -1.4 | L64: 0 | M64: -0.86 | O64: -1360 | P64: 0.6199249141
A65: 62 | B65: 1812 | D65: -1.24 | H65: 120002 | I65: 265.2 | J65: 119588.3846 | K65: -1.16 | L65: 0.59 | M65: -0.24 | O65: -1350 | P65: 0.6217680412
A66: 63 | B66: 1853 | D66: -0.96 | H66: 120652 | I66: 277.7 | J66: 120287.0833 | K66: 0.13 | L66: 0.18 | M66: -0.64 | O66: -1340 | P66: 0.6230641235
A67: 64 | B67: 1893 | D67: -0.53 | H67: 121961 | I67: 272.2 | J67: 121284.1667 | K67: 0.59 | L67: 0.51 | M67: -0.39 | O67: -1330 | P67: 0.624076989
A68: 65 | B68: 1931 | D68: 0.15 | H68: 122606 | I68: 276.5 | J68: 122261.3333 | K68: 0.39 | L68: 0.65 | M68: 0.63 | O68: -1320 | P68: 0.6276720218
A69: 66 | B69: 1970 | D69: -0.28 | H69: 123815 | I69: 268.7 | J69: 123175.2727 | K69: 0.71 | L69: 0.45 | M69: 0.65 | O69: -1310 | P69: 0.6313845781
A70: 67 | B70: 2009 | D70: -0.45 | H70: 123858 | I70: 266.6 | J70: 123797.5 | K70: 0.72 | L70: 0.53 | M70: 0.62 | O70: -1300 | P70: 0.6268597854
A71: 68 | B71: 2049 | D71: -0.38 | H71: 124306 | I71: 266.3 | J71: 124045.1111 | K71: 0.6 | L71: 1.03 | M71: 0.24 | O71: -1290 | P71: 0.6270517944
A72: 69 | B72: 2089 | D72: -0.53 | H72: 124571 | I72: 279.8 | J72: 124404.1667 | K72: 0.62 | L72: 1.26 | M72: 0.92 | O72: -1280 | P72: 0.627520128
A73: 70 | B73: 2129 | D73: -0.61 | H73: 124876 | I73: 277.2 | J73: 124682.1667 | K73: 0.65 | L73: 1.41 | M73: 0.76 | O73: -1270 | P73: 0.6288834761
A74: 71 | B74: 2171 | D74: -0.95 | H74: 125746 | I74: 273.8 | J74: 125268.5882 | K74: 0.43 | L74: 2.22 | M74: 1.26 | O74: -1260 | P74: 0.6295441716
A75: 72 | B75: 2212 | D75: -0.73 | H75: 126023 | I75: 267.1 | J75: 125848.8333 | K75: 0.47 | L75: 2.26 | M75: 2.07 | O75: -1250 | P75: 0.631072733
A76: 73 | B76: 2253 | D76: 0.12 | H76: 126475 | I76: 262.5 | J76: 126214.5556 | K76: 0.93 | L76: 3.08 | M76: 2.33 | O76: -1240 | P76: 0.6328847425
A77: 74 | B77: 2291 | D77: 1.16 | H77: 126809 | I77: 262.6 | J77: 126621 | K77: 2.07 | L77: 2.45 | M77: 2.4 | O77: -1230 | P77: 0.6326348155
A78: 75 | B78: 2331 | D78: -0.98 | H78: 127445 | I78: 275.4 | J78: 127106.8462 | K78: 2.46 | L78: 0.67 | M78: 2.68 | O78: -1220 | P78: 0.6333430528
A79: 76 | B79: 2374 | D79: -1.44 | H79: 128300 | I79: 274.1 | J79: 127835.3889 | K79: 2.5 | L79: 0.88 | M79: 1.42 | O79: -1210 | P79: 0.6339989263
A80: 77 | B80: 2418 | D80: -0.73 | H80: 128399 | I80: 287.1 | J80: 128308.3333 | K80: 3.23 | L80: 0.84 | M80: 1.83 | O80: -1200 | P80: 0.6360721545
A81: 78 | B81: 2460 | D81: -0.63 | H81: 128652 | I81: 286.8 | J81: 128502 | K81: 2.11 | L81: 0.24 | M81: 0.67 | O81: -1190 | P81: 0.6379184269
A82: 79 | B82: 2501 | D82: 0.3 | H82: 129007 | I82: 282.7 | J82: 128803.8571 | K82: 1.7 | L82: -0.56 | M82: 1.95 | O82: -1180 | P82: 0.6381967636
A83: 80 | B83: 2542 | D83: -0.27 | H83: 129411 | I83: 264.1 | J83: 129169 | K83: 2.2 | L83: -1.14 | M83: 1.24 | O83: -1170 | P83: 0.6394416123
A84: 81 | B84: 2585 | D84: -1.36 | H84: 129755 | I84: 263.4 | J84: 129541.5714 | K84: 2.16 | L84: -1.48 | M84: 0.53 | O84: -1160 | P84: 0.6441638845
A85: 82 | B85: 2628 | D85: -0.17 | H85: 130167 | I85: 259 | J85: 129917.4444 | K85: 1.79 | L85: -2.78 | M85: -0.54 | O85: -1150 | P85: 0.6419830489
A86: 83 | B86: 2670 | D86: -0.02 | H86: 131789 | I86: 240.4 | J86: 130924.7857 | K86: -1.45 | L86: -4.41 | M86: -2.57 | O86: -1140 | P86: 0.6464335338
A87: 84 | B87: 2713 | D87: -1.19 | H87: 133334 | I87: 224 | J87: 132519 | K87: -3.73 | L87: -7.48 | M87: -5.28 | O87: -1130 | P87: 0.6469331043
A88: 85 | B88: 2760 | D88: -1.97 | H88: 134205 | I88: 208.9 | J88: 133727.4167 | K88: -5.4 | L88: -7.51 | M88: -6.9 | O88: -1120 | P88: 0.6504237078
A89: 86 | B89: 2805 | D89: -0.61 | H89: 135003 | I89: 204.6 | J89: 134539.8889 | K89: -6.9 | L89: -7.62 | M89: -7.33 | O89: -1110 | P89: 0.6508544686
A90: 87 | B90: 2847 | D90: 0.58 | H90: 135683 | I90: 198.1 | J90: 135257.75 | K90: -6.91 | L90: -7.47 | M90: -7.39 | O90: -1100 | P90: 0.6523455386
A91: 88 | B91: 2889 | D91: -0.38 | H91: 135976 | I91: 201.8 | J91: 135752.75 | K91: -7.31 | L91: -8.51 | M91: -7.51 | O91: -1090 | P91: 0.6480914854
A92: 89 | B92: 2934 | D92: -1.34 | H92: 136359 | I92: 202.5 | J92: 136104.8 | K92: -7.44 | L92: -8.94 | M92: -7.82 | O92: -1080 | P92: 0.6479160098
A93: 90 | B93: 2980 | D93: -1.41 | H93: 136659 | I93: 195.9 | J93: 136461.5 | K93: -7.29 | L93: -8.67 | M93: -7.72 | O93: -1070 | P93: 0.647126297
A94: 91 | B94: 3026 | D94: -0.73 | H94: 137383 | I94: 194.4 | J94: 136975.375 | K94: -7.98 | L94: -8.4 | M94: -8.89 | O94: -1060 | P94: 0.6469399067
A95: 92 | B95: 3070 | D95: -0.25 | H95: 137694 | I95: 193.4 | J95: 137496.75 | K95: -7.47 | L95: -8.86 | M95: -8.59 | O95: -1050 | P95: 0.6456802273
A96: 93 | B96: 3114 | D96: -0.53 | H96: 138226 | I96: 190.2 | J96: 137916.6667 | K96: -9.24 | L96: -8.82 | M96: -8.3 | O96: -1040 | P96: 0.647029405
A97: 94 | B97: 3158 | D97: -0.08 | H97: 139445 | I97: 192.3 | J97: 138809.0833 | K97: -8.4 | L97: -8.54 | M97: -8.82 | O97: -1030 | P97: 0.6471960677
A98: 95 | B98: 3201 | D98: 0.15 | H98: 141312 | I98: 196.5 | J98: 140316.4706 | K98: -8.38 | L98: -8.17 | M98: -8.21 | O98: -1020 | P98: 0.6520541845
A99: 96 | B99: 3245 | D99: -0.43 | H99: 142357 | I99: 190.4 | J99: 141771.5455 | K99: -8.36 | L99: -7.71 | M99: -8.09 | O99: -1010 | P99: 0.6544659538
A100: 97 | B100: 3289 | D100: -0.61 | H100: 145435 | I100: 197 | J100: 143839.25 | K100: -8.13 | L100: -8.02 | M100: -8 | O100: -1000 | P100: 0.654271856
A101: 98 | B101: 3334 | D101: -0.3 | H101: 150303 | I101: 191.9 | J101: 147794.3556 | K101: -7.54 | L101: -7.77 | M101: -6.86 | O101: -990 | P101: 0.6564654153
A102: 99 | B102: 3379 | D102: -0.13 | H102: 154471 | I102: 189 | J102: 152301.3077 | K102: -7.86 | L102: -9.08 | M102: -8.84 | O102: -980 | P102: 0.6571285848
A103: 100 | B103: 3422 | D103: 0.22 | H103: 155299 | I103: 185.5 | J103: 154849.25 | K103: -8.06 | L103: -8.5 | M103: -8.87 | O103: -970 | P103: 0.6574326832
A104: 101 | B104: 3466 | D104: 0.17 | H104: 160494 | I104: 204.4 | J104: 157909.3696 | K104: -6.78 | L104: -5.46 | M104: -7.34 | O104: -960 | P104: 0.6605768109
A105: 102 | B105: 3511 | D105: -0.91 | H105: 162996 | I105: 191.6 | J105: 161703.8333 | K105: -6.52 | L105: -8.29 | M105: -7.39 | O105: -950 | P105: 0.6629532233
A106: 103 | B106: 3558 | D106: -0.9 | H106: 165278 | I106: 183.8 | J106: 164097.65 | K106: -8.31 | L106: -8.25 | M106: -7.97 | O106: -940 | P106: 0.6611071007
A107: 104 | B107: 3603 | D107: 0.3 | H107: 169870 | I107: 197.9 | J107: 167627.641 | K107: -6.87 | L107: -6.88 | M107: -6.05 | O107: -930 | P107: 0.6630067874
A108: 105 | B108: 3646 | D108: 0.65 | H108: 172596 | I108: 197.8 | J108: 171171.7826 | K108: -7.53 | L108: -5.95 | M108: -6.89 | O108: -920 | P108: 0.665298899
A109: 106 | B109: 3689 | D109: 0.58 | H109: 175440 | I109: 190.3 | J109: 173977.4 | K109: -6.84 | L109: -6.88 | M109: -7.23 | O109: -910 | P109: 0.6667688572
A110: 107 | B110: 3732 | D110: 0.03 | H110: 176271 | I110: 190.1 | J110: 175811.125 | K110: -7.56 | L110: -7.25 | M110: -7.49 | O110: -900 | P110: 0.6666915188
A111: 108 | B111: 3778 | D111: -0.63 | H111: 178550 | I111: 207.7 | J111: 177329.1667 | K111: -8.19 | L111: -5.71 | M111: -7 | O111: -890 | P111: 0.6656715866
A112: 109 | B112: 3824 | D112: -0.46 | H112: 180779 | I112: 213.2 | J112: 179569.1053 | K112: -5.64 | L112: -8.08 | M112: -6.2 | O112: -880 | P112: 0.6704961996
A113: 110 | B113: 3870 | D113: 0 | H113: 181617 | I113: 217.7 | J113: 181078 | K113: -6.2 | L113: -7.64 | M113: -8 | O113: -870 | P113: 0.6687809134
A114: 111 | B114: 3915 | D114: -0.23 | H114: 183355 | I114: 199.8 | J114: 182358.1429 | K114: -8.58 | L114: -7.75 | M114: -7.79 | O114: -860 | P114: 0.6707704087
A115: 112 | B115: 3962 | D115: -0.66 | H115: 185063 | I115: 203.5 | J115: 184085.6923 | K115: -7.75 | L115: -7.94 | M115: -8.49 | O115: -850 | P115: 0.6712645199
A116: 113 | B116: 4009 | D116: -0.73 | H116: 187199 | I116: 210.7 | J116: 185998.4375 | K116: -7.36 | L116: -6.64 | M116: -7.01 | O116: -840 | P116: 0.6750196048
A117: 114 | B117: 4057 | D117: -0.75 | H117: 189335 | I117: 231.4 | J117: 188186.2353 | K117: -6.48 | L117: -5.18 | M117: -6.49 | O117: -830 | P117: 0.6771797655
A118: 115 | B118: 4104 | D118: -0.91 | H118: 191057 | I118: 231.5 | J118: 190200.8667 | K118: -3.68 | L118: -5.84 | M118: -5.36 | O118: -820 | P118: 0.681483362
A119: 116 | B119: 4153 | D119: -1.09 | H119: 192632 | I119: 218 | J119: 191770.2308 | K119: -5.85 | L119: -4.96 | M119: -6.78 | O119: -810 | P119: 0.6822801714
A120: 117 | B120: 4202 | D120: -1 | H120: 195625 | I120: 220.1 | J120: 194048.52 | K120: -5.48 | L120: -4.87 | M120: -5.72 | O120: -800 | P120: 0.6820501845
A121: 118 | B121: 4250 | D121: -0.53 | H121: 199025 | I121: 242.6 | J121: 197316.7931 | K121: -2.96 | L121: -2.78 | M121: -2.8 | O121: -790 | P121: 0.687253154
A122: 119 | B122: 4295 | D122: 0.55 | H122: 202212 | I122: 251 | J122: 200604 | K122: -1.53 | L122: -2.71 | M122: -2.49 | O122: -780 | P122: 0.6884939812
A123: 120 | B123: 4339 | D123: 1.13 | H123: 203191 | I123: 239.1 | J123: 202661.3 | K123: -1.98 | L123: -3.55 | M123: -3.03 | O123: -770 | P123: 0.6865637203
A124: 121 | B124: 4381 | D124: 1.13 | H124: 204283 | I124: 247.7 | J124: 203709.6364 | K124: -2.84 | L124: -5.05 | M124: -3.17 | O124: -760 | P124: 0.6903445645
A125: 122 | B125: 4423 | D125: 1.13 | H125: 205148 | I125: 244.4 | J125: 204684.75 | K125: -3.55 | L125: -4.37 | M125: -4.35 | O125: -750 | P125: 0.6906904427
A126: 123 | B126: 4466 | D126: 1.13 | H126: 205715 | I126: 232.2 | J126: 205398.3333 | K126: -4.25 | L126: -4.47 | M126: -4.39 | O126: -740 | P126: 0.6896878812
A127: 124 | B127: 4509 | D127: 1.13 | H127: 206119 | I127: 228.7 | J127: 205901.5 | K127: -4.95 | L127: -4.02 | M127: -4.27 | O127: -730 | P127: 0.6942768619
A128: 125 | B128: 4552 | D128: 0.88 | H128: 207991 | I128: 238.2 | J128: 207017.9333 | K128: -4.11 | L128: -3.58 | M128: -3.59 | O128: -720 | P128: 0.6933943591
A129: 126 | B129: 4596 | D129: 0.2 | H129: 209414 | I129: 242.2 | J129: 208630.4167 | K129: -2.88 | L129: -2.56 | M129: -2.51 | O129: -710 | P129: 0.6923210773
A130: 127 | B130: 4642 | D130: -0.33 | H130: 210022 | I130: 244.6 | J130: 209624.5 | K130: -3.58 | L130: -2 | M130: -2.33 | O130: -700 | P130: 0.6913523239
A131: 128 | B131: 4690 | D131: -0.88 | H131: 210830 | I131: 247.3 | J131: 210359.25 | K131: -2.33 | L131: -1.63 | M131: -2.28 | O131: -690 | P131: 0.6897529007
A132: 129 | B132: 4739 | D132: -0.58 | H132: 211005 | I132: 252 | J132: 210835 | K132: -2.14 | L132: -1.65 | M132: -2.61 | O132: -680 | P132: 0.6871273461
A133: 130 | B133: 4786 | D133: 0.25 | H133: 212281 | I133: 257.4 | J133: 211543.0833 | K133: -1.81 | L133: -1.4 | M133: -1.65 | O133: -670 | P133: 0.6875722912
A134: 131 | B134: 4831 | D134: 0 | H134: 214153 | I134: 251.2 | J134: 213166.5 | K134: -1.5 | L134: -2.28 | M134: -1.39 | O134: -660 | P134: 0.6885239011
A135: 132 | B135: 4880 | D135: -1.14 | H135: 215041 | I135: 241.4 | J135: 214535 | K135: -1.39 | L135: -1.23 | M135: -1.45 | O135: -650 | P135: 0.6892867845
A136: 133 | B136: 4929 | D136: -0.66 | H136: 215593 | I136: 240.3 | J136: 215216.1667 | K136: -0.91 | L136: -1.2 | M136: -2.11 | O136: -640 | P136: 0.693918694
A137: 134 | B137: 4977 | D137: -0.36 | H137: 215879 | I137: 242.7 | J137: 215666.75 | K137: -1.45 | L137: -2.18 | M137: -1.39 | O137: -630 | P137: 0.696626407
A138: 135 | B138: 5025 | D138: -0.66 | H138: 216459 | I138: 247.5 | J138: 216137.3333 | K138: -2.14 | L138: -2.2 | M138: -0.86 | O138: -620 | P138: 0.6973593498
A139: 136 | B139: 5072 | D139: 0.13 | H139: 217009 | I139: 251.7 | J139: 216674.6 | K139: -0.97 | L139: -2.94 | M139: -1.18 | O139: -610 | P139: 0.697367198
A140: 137 | B140: 5118 | D140: 0.18 | H140: 217271 | I140: 251.2 | J140: 217074.25 | K140: -0.86 | L140: -2.98 | M140: -1.85 | O140: -600 | P140: 0.6986254256
A141: 138 | B141: 5165 | D141: -0.38 | H141: 217676 | I141: 245.4 | J141: 217413.5 | K141: -1.2 | L141: -2.84 | M141: -2.2 | O141: -590 | P141: 0.6996001266
A142: 139 | B142: 5212 | D142: -0.22 | H142: 218342 | I142: 240.5 | J142: 217940.4286 | K142: -2.08 | L142: -4.43 | M142: -2.9 | O142: -580 | P142: 0.7025873623
A143: 140 | B143: 5259 | D143: 0.28 | H143: 219680 | I143: 212.2 | J143: 218947.2727 | K143: -2.84 | L143: -5.78 | M143: -4.99 | O143: -570 | P143: 0.7024020179
A144: 141 | B144: 5305 | D144: 0.1 | H144: 220182 | I144: 216.2 | J144: 219882.2 | K144: -4.23 | L144: -6.06 | M144: -4.49 | O144: -560 | P144: 0.7010595535
A145: 142 | B145: 5351 | D145: 0.08 | H145: 220760 | I145: 207.2 | J145: 220388.25 | K145: -4.84 | L145: -6.49 | M145: -5.78 | O145: -550 | P145: 0.7019650994
A146: 143 | B146: 5397 | D146: 0.5 | H146: 221054 | I146: 208.9 | J146: 220760.3333 | K146: -4.49 | L146: -6.78 | M146: -6.02 | O146: -540 | P146: 0.7023863871
A147: 144 | B147: 5442 | D147: 0.5 | H147: 221612 | I147: 205.7 | J147: 221211.6 | K147: -5.78 | L147: -7.63 | M147: -7.07 | O147: -530 | P147: 0.7001936917
A148: 145 | B148: 5488 | D148: 0.2 | H148: 222958 | I148: 203.4 | J148: 222193 | K148: -6.78 | L148: -5.89 | M148: -7.63 | O148: -520 | P148: 0.7030549671
A149: 146 | B149: 5534 | D149: 0.02 | H149: 223446 | I149: 215.7 | J149: 223151.75 | K149: -7.3 | L149: -5.88 | M149: -7.36 | O149: -510 | P149: 0.7043696218
A150: 147 | B150: 5581 | D150: 0.08 | H150: 224630 | I150: 236.9 | J150: 223978.1429 | K150: -7.19 | L150: -6.33 | M150: -5.88 | O150: -500 | P150: 0.7034910771
A151: 148 | B151: 5627 | D151: 0.03 | H151: 225299 | I151: 234.5 | J151: 224885.4 | K151: -6.2 | L151: -7.7 | M151: -5.72 | O151: -490 | P151: 0.7050910181
A152: 149 | B152: 5674 | D152: -0.06 | H152: 225509 | I152: 233.1 | J152: 225314 | K152: -5.88 | L152: -7.62 | M152: -5.58 | O152: -480 | P152: 0.7071157296
A153: 150 | B153: 5721 | D153: -0.15 | H153: 225888 | I153: 224.5 | J153: 225562.3333 | K153: -5.96 | L153: -6.81 | M153: -6.33 | O153: -470 | P153: 0.7065037546
A154: 151 | B154: 5769 | D154: -0.25 | H154: 226710 | I154: 232.4 | J154: 226154.3333 | K154: -6.33 | L154: -6.81 | M154: -7.62 | O154: -460 | P154: 0.7059048916
A155: 152 | B155: 5816 | D155: -0.22 | H155: 227384 | I155: 233.9 | J155: 226945.6 | K155: -7.62 | L155: -7.01 | M155: -6.5 | O155: -450 | P155: 0.706847027
A156: 153 | B156: 5863 | D156: 0.15 | H156: 227840 | I156: 241.7 | J156: 227510.6667 | K156: -7.12 | L156: -6.71 | M156: -6.81 | O156: -440 | P156: 0.7074839243
A157: 154 | B157: 5909 | D157: 0.45 | H157: 230703 | I157: 245.2 | J157: 229162.4118 | K157: -5.94 | L157: -4.16 | M157: -5.07 | O157: -430 | P157: 0.7094593371
A158: 155 | B158: 5955 | D158: -0.13 | H158: 231382 | I158: 252.2 | J158: 230969 | K158: -5.15 | L158: -3.66 | M158: -4.38 | O158: -420 | P158: 0.7074008446
A159: 156 | B159: 6004 | D159: -0.73 | H159: 231990 | I159: 241.4 | J159: 231648 | K159: -4.54 | L159: -2.33 | M159: -3.91 | O159: -410 | P159: 0.7105650852
A160: 157 | B160: 6052 | D160: -0.21 | H160: 232570 | I160: 247.4 | J160: 232219 | K160: -4.29 | L160: -2.22 | M160: -3.66 | O160: -400 | P160: 0.7135679315
A161: 158 | B161: 6099 | D161: 0.32 | H161: 233102 | I161: 243.1 | J161: 232772.4 | K161: -3.44 | L161: -2.77 | M161: -2.59 | O161: -390 | P161: 0.7131059249
A162: 159 | B162: 6145 | D162: -0.17 | H162: 233646 | I162: 239.2 | J162: 233312.75 | K162: -3.26 | L162: -2.24 | M162: -2.22 | O162: -380 | P162: 0.7152629471
A163: 160 | B163: 6193 | D163: -0.33 | H163: 234126 | I163: 245.7 | J163: 233834 | K163: -2.78 | L163: -1.45 | M163: -2.65 | O163: -370 | P163: 0.715907379
A164: 161 | B164: 6241 | D164: 0.09 | H164: 234470 | I164: 245.9 | J164: 234267 | K164: -2.22 | L164: -1.11 | M164: -2.44 | O164: -360 | P164: 0.7177138695
A165: 162 | B165: 6287 | D165: 0.28 | H165: 234781 | I165: 247.4 | J165: 234552.3333 | K165: -2.25 | L165: -1.15 | M165: -2.24 | O165: -350 | P165: 0.7187087016
A166: 163 | B166: 6334 | D166: -0.55 | H166: 235213 | I166: 252.9 | J166: 234911 | K166: -2.44 | L166: 0.16 | M166: -1.89 | O166: -340 | P166: 0.7201637918
A167: 164 | B167: 6385 | D167: -1.59 | H167: 236236 | I167: 259.8 | J167: 235623 | K167: -1.45 | L167: 1.9 | M167: -0.6 | O167: -330 | P167: 0.7202796734
A168: 165 | B168: 6436 | D168: -1.09 | H168: 237831 | I168: 279 | J168: 236961 | K168: 1.74 | L168: -1.76 | M168: 1.55 | O168: -320 | P168: 0.7246105977
A169: 166 | B169: 6486 | D169: -0.31 | H169: 238935 | I169: 263.8 | J169: 238311.3636 | K169: 0.99 | L169: -3.85 | M169: -1.29 | O169: -310 | P169: 0.7251070729
A170: 167 | B170: 6534 | D170: -0.62 | H170: 239250 | I170: 252.4 | J170: 239064.75 | K170: 0.46 | L170: -4.82 | M170: -2.22 | O170: -300 | P170: 0.7289141296
A171: 168 | B171: 6583 | D171: -0.65 | H171: 239545 | I171: 249.9 | J171: 239376.3333 | K171: -0.54 | L171: -5.23 | M171: -2.59 | O171: -290 | P171: 0.730407528
A172: 169 | B172: 6631 | D172: 0.37 | H172: 240201 | I172: 230.4 | J172: 239788.6 | K172: -2.12 | L172: -5.86 | M172: -3.85 | O172: -280 | P172: 0.7318775788
A173: 170 | B173: 6677 | D173: 0.37 | H173: 240577 | I173: 219.4 | J173: 240311.5 | K173: -3.43 | L173: -5.74 | M173: -4.82 | O173: -270 | P173: 0.7329411087
A174: 171 | B174: 6724 | D174: -0.36 | H174: 242068 | I174: 214.7 | J174: 241243.6667 | K174: -6.1 | L174: -6.38 | M174: -5.65 | O174: -260 | P174: 0.7363081311
A175: 172 | B175: 6773 | D175: -0.84 | H175: 243653 | I175: 200.2 | J175: 242762 | K175: -5.46 | L175: -6.71 | M175: -6.94 | O175: -250 | P175: 0.7356903243
A176: 173 | B176: 6823 | D176: -1.28 | H176: 244215 | I176: 213.9 | J176: 243818.25 | K176: -6.82 | L176: -7.07 | M176: -6.97 | O176: -240 | P176: 0.7357893146
A177: 174 | B177: 6874 | D177: -1.14 | H177: 244863 | I177: 195.4 | J177: 244444.75 | K177: -7.07 | L177: -6.78 | M177: -6.71 | O177: -230 | P177: 0.7397734527
A178: 175 | B178: 6924 | D178: -0.58 | H178: 245483 | I178: 196.7 | J178: 245088.25 | K178: -6.58 | L178: -6.6 | M178: -6.86 | O178: -220 | P178: 0.73964327
A179: 176 | B179: 6973 | D179: -0.59 | H179: 247447 | I179: 199 | J179: 246376.9 | K179: -6.6 | L179: -6.51 | M179: -7.1 | O179: -210 | P179: 0.7374953936
A180: 177 | B180: 7023 | D180: -1.05 | H180: 248087 | I180: 201.9 | J180: 247677.25 | K180: -7.13 | L180: -6.39 | M180: -7.41 | O180: -200 | P180: 0.7367051818
A181: 178 | B181: 7074 | D181: -1.2 | H181: 248980 | I181: 204 | J181: 248455.2 | K181: -7.24 | L181: -5.29 | M181: -6.11 | O181: -190 | P181: 0.7378590457
A182: 179 | B182: 7124 | D182: -0.63 | H182: 250461 | I182: 203.9 | J182: 249663.5 | K182: -6.17 | L182: -7.16 | M182: -6.34 | O182: -180 | P182: 0.7385822602
A183: 180 | B183: 7172 | D183: 0.02 | H183: 251521 | I183: 209.7 | J183: 250924.8333 | K183: -6.48 | L183: -6.93 | M183: -6.79 | O183: -170 | P183: 0.7356047762
A184: 181 | B184: 7220 | D184: -0.04 | H184: 252959 | I184: 208.9 | J184: 252107.1429 | K184: -6.01 | L184: -5.14 | M184: -6.88 | O184: -160 | P184: 0.7368564
A185: 182 | B185: 7267 | D185: -0.11 | H185: 253880 | I185: 214.7 | J185: 253216 | K185: -6.88 | L185: -6.43 | M185: -5.6 | O185: -150 | P185: 0.7353689922
A186: 183 | B186: 7315 | D186: -0.29 | H186: 255233 | I186: 228.2 | J186: 254439.25 | K186: -5.77 | L186: -7.13 | M186: -6.43 | O186: -140 | P186: 0.7349840546
A187: 184 | B187: 7364 | D187: -0.81 | H187: 256053 | I187: 199.9 | J187: 255511.5 | K187: -6.43 | L187: -7.85 | M187: -6.93 | O187: -130 | P187: 0.7325616933
A188: 185 | B188: 7413 | D188: -0.58 | H188: 256501 | I188: 211.7 | J188: 256068.6667 | K188: -6.69 | L188: -7.67 | M188: -7.42 | O188: -120 | P188: 0.7312400396
A189: 186 | B189: 7462 | D189: 0.02 | H189: 257247 | I189: 188.7 | J189: 256761.2 | K189: -7.42 | L189: -8.09 | M189: -7.85 | O189: -110 | P189: 0.7323753258
A190: 187 | B190: 7509 | D190: -0.03 | H190: 258477 | I190: 194.2 | J190: 257851.5 | K190: -7.67 | L190: -8.31 | M190: -8.09 | O190: -100 | P190: 0.7328444865
A191: 188 | B191: 7555 | D191: 0.48 | H191: 259228 | I191: 198.9 | J191: 258724 | K191: -7.98 | L191: -8.43 | M191: -8.3 | O191: -90 | P191: 0.7353351288
A192: 189 | B192: 7602 | D192: -0.02 | H192: 259958 | I192: 184.7 | J192: 259363.75 | K192: -7.99 | L192: -8.16 | M192: -8.26 | O192: -80 | P192: 0.7352832296
A193: 190 | B193: 7649 | D193: 0.02 | H193: 260754 | I193: 190.4 | J193: 260141.75 | K193: -8.26 | L193: -8.21 | M193: -8.43 | O193: -70 | P193: 0.7354588327
A194: 191 | B194: 7697 | D194: -0.04 | H194: 261595 | I194: 193.9 | J194: 260935.5 | K194: -8.43 | L194: -8.08 | M194: -8.42 | O194: -60 | P194: 0.7359371122
A195: 192 | B195: 7745 | D195: -0.72 | H195: 262411 | I195: 194.2 | J195: 261866.6 | K195: -8.3 | L195: -7.93 | M195: -8.13 | O195: -50 | P195: 0.7372902436
A196: 193 | B196: 7794 | D196: -0.57 | H196: 263207 | I196: 198.4 | J196: 262799.5 | K196: -8.13 | L196: -7.85 | M196: -8.53 | O196: -40 | P196: 0.7375299219
A197: 194 | B197: 7844 | D197: -0.9 | H197: 264046 | I197: 193.2 | J197: 263600.75 | K197: -8.53 | L197: -7.78 | M197: -7.86 | O197: -30 | P197: 0.7387654899
A198: 195 | B198: 7894 | D198: -0.93 | H198: 264834 | I198: 202.2 | J198: 264400.5 | K198: -7.86 | L198: -7.75 | M198: -8.57 | O198: -20 | P198: 0.7407564362
A199: 196 | B199: 7944 | D199: -0.69 | H199: 266492 | I199: 211 | J199: 265590.1429 | K199: -7.61 | L199: -5.96 | M199: -7.66 | O199: -10 | P199: 0.7364370147
A200: 197 | B200: 7994 | D200: -0.54 | H200: 267434 | I200: 215.4 | J200: 266905.2 | K200: -7.65 | L200: -6.65 | M200: -6.59 | O200: 0 | P200: 0.7398730676
... 3113 more rows

Sheet Solubility
B3: kH (mol/kg/bar) | C3: [CO2] (ppm) | D3: Age (yr) | E3: DT (K) | F3: T (K) | G3: kH (mol/kg/bar) | I3: kH (mol/kg/bar) | J3: h | K3: kH (mol/kg/bar)
C4: 284.7 | D4: 1010.5 | E4: -0.53 | F4: =T_+E4 -> 285.6755556 | G4: =0.034*EXP(2400*(1/F4-1/298.15)) -> 0.04832069334 | H4: -0.53 | I4: =10^(108.3865+0.01985076*F4-6919.53/F4-40.45154*LOG10(F4)+669365/F4^2) -> 0.04941230292 | J4: =0.091+0.021+(-0.005-0.00053*E4) -> 0.1072809 | K4: =I4*1/10^(J4*0.72) -> 0.04136117303 | L4: =K4*C4/1000000 -> 1.177552596e-05 | M4: =AVERAGE(L4:L286) -> 1.088825157e-05 | N4: =STDEV(L4:L286) -> 6.374986871e-07 | O4: =N4/M4 -> 0.05854922463
A5: =(55.5-32)*5/9+273.15 -> 286.2055556 | C5: 272.8 | D5: 2960.433333 | E5: 1.13 | F5: =T_+E5 -> 287.3355556 | G5: 0.04603144253 | H5: 1.13 | I5: =10^(108.3865+0.01985076*F5-6919.53/F5-40.45154*LOG10(F5)+669365/F5^2) -> 0.04682072846 | J5: =0.091+0.021+(-0.005-0.00053*E5) -> 0.1064011 | K5: =I5*1/10^(J5*0.72) -> 0.03924907034 | L5: =K5*C5/1000000 -> 1.070714639e-05
C6: 268.1 | D6: 3712 | E6: 0.2 | F6: =T_+E6 -> 286.4055556 | G6: 0.04729699678 | H6: 0.2 | I6: 0.04824705533 | J6: 0.106894 | K6: 0.0404117011 | L6: 1.083437706e-05
C7: 262.2 | D7: 5003.019231 | E7: -0.59 | F7: =T_+E7 -> 285.6155556 | G7: 0.04840604736 | H7: -0.59 | I7: 0.04950992397 | J7: 0.1073127 | K7: 0.04144070312 | L7: 1.086575236e-05
C8: 254.6 | D8: 6753.041667 | E8: 0.3 | F8: =T_+E8 -> 286.5055556 | G8: 0.04715886445 | H8: 0.3 | I8: 0.04809061066 | J8: 0.106841 | K8: 0.04028420263 | L8: 1.025635799e-05
C9: 259.6 | D9: 7700.882353 | E9: -0.54 | F9: =T_+E9 -> 285.6655556 | G9: 0.04833490606 | H9: -0.54 | I9: 0.04942855332 | J9: 0.1072862 | K9: 0.04137441209 | L9: 1.074079738e-05
C10: 261.6 | D10: 9079.595238 | E10: -0.15 | F10: =T_+E10 -> 286.0555556 | G10: 0.04778442349 | H10: -0.15 | I10: 0.04880059742 | J10: 0.1070795 | K10: 0.04086277899 | L10: 1.068970298e-05
C11: 263.7 | D11: 10539.85 | E11: -2.37 | F11: =T_+E11 -> 283.8355556 | G11: 0.05102528788 | H11: -2.37 | I11: 0.05254039 | J11: 0.1082561 | K11: 0.04390853024 | L11: 1.157867943e-05
C12: 244.8 | D12: 11145.42857 | E12: -3.09 | F12: =T_+E12 -> 283.1155556 | G12: 0.05213440271 | H12: -3.09 | I12: 0.05384395304 | J12: 0.1086377 | K12: 0.04496947245 | L12: 1.100852686e-05
C13: 238.3 | D13: 11487.33333 | E13: -3.76 | F13: =T_+E13 -> 282.4455556 | G13: 0.05319337811 | H13: -3.76 | I13: 0.05509987103 | J13: 0.1089928 | K13: 0.04599130855 | L13: 1.095972883e-05
C14: 236.2 | D14: 12513.37931 | E14: -3.08 | F14: =T_+E14 -> 283.1255556 | G14: 0.0521187954 | H14: -3.08 | I14: 0.05382552561 | J14: 0.1086324 | K14: 0.04495447721 | L14: 1.061824752e-05
C15: 225.3 | D15: 13653.09091 | E15: -4.14 | F15: =T_+E15 -> 282.0655556 | G15: 0.05380580714 | H15: -4.14 | I15: 0.05583122893 | J15: 0.1091942 | K15: 0.04658620822 | L15: 1.049587271e-05
C16: 182.2 | D16: 15662.77778 | E16: -7.97 | F16: =T_+E16 -> 278.2355556 | G16: 0.06049167717 | H16: -7.97 | I16: 0.06405557444 | J16: 0.1112241 | K16: 0.05326912685 | L16: 9.705634913e-06
C17: 189.2 | D17: 18782.68966 | E17: -7.87 | F17: =T_+E17 -> 278.3355556 | G17: 0.06030450005 | H17: -7.87 | I17: 0.06381933478 | J17: 0.1111711 | K17: 0.05307733159 | L17: 1.004223114e-05 | M17: Source: | N17: http://sundoc.bibliothek.uni-halle.de/diss-online/04/04H141/t5.pdf
C18: 191.6 | D18: 21447.75676 | E18: -8.63 | F18: =T_+E18 -> 277.5755556 | G18: 0.0617451595 | H18: -8.63 | I18: 0.06564652157 | J18: 0.1115739 | K18: 0.05456052128 | L18: 1.045379588e-05
C19: 188.5 | D19: 24640.625 | E19: -8.64 | F19: =T_+E19 -> 277.5655556 | G19: 0.0617643964 | H19: -8.64 | I19: 0.06567105821 | J19: 0.1115792 | K19: 0.05458043473 | L19: 1.028841195e-05
C20: 191.7 | D20: 26638.1 | E20: -8.52 | F20: =T_+E20 -> 277.6855556 | G20: 0.06153403978 | H20: -8.52 | I20: 0.06537747853 | J20: 0.1115156 | K20: 0.05434216475 | L20: 1.041739298e-05
C21: 205.4 | D21: 29217.88462 | E21: -7.27 | F21: =T_+E21 -> 278.9355556 | G21: 0.05919629967 | H21: -7.27 | I21: 0.06242773074 | J21: 0.1108531 | K21: 0.05194734029 | L21: 1.06699837e-05
C22: 209.1 | D22: 32631.80645 | E22: -5.87 | F22: =T_+E22 -> 280.3355556 | G22: 0.05670655653 | H22: -5.87 | I22: 0.05934540926 | J22: 0.1101111 | K22: 0.04944326447 | L22: 1.03385866e-05
C23: 209.1 | D23: 36814.86842 | E23: -6.56 | F23: =T_+E23 -> 279.6455556 | G23: 0.05791716184 | H23: -6.56 | I23: 0.0608365216 | J23: 0.1104768 | K23: 0.05065485526 | L23: 1.059193024e-05
C24: 189.3 | D24: 42245.14286 | E24: -7.64 | F24: =T_+E24 -> 278.5655556 | G24: 0.05987669327 | H24: -7.64 | I24: 0.06328068899 | J24: 0.1110492 | K24: 0.0526399872 | L24: 9.964749578e-06
C25: 188.4 | D25: 45843.22222 | E25: -6.28 | F25: =T_+E25 -> 279.9255556 | G25: 0.05742209562 | H25: -6.28 | I25: 0.06022500031 | J25: 0.1103284 | K25: 0.05015801754 | L25: 9.449770504e-06
C26: 210.1 | D26: 47589.875 | E26: -6.24 | F26: =T_+E26 -> 279.9655556 | G26: 0.05735179857 | H26: -6.24 | I26: 0.0601383629 | J26: 0.1103072 | K26: 0.05008762248 | L26: 1.052340948e-05
C27: 215.7 | D27: 48786.6 | E27: -5.45 | F27: =T_+E27 -> 280.7555556 | G27: 0.05598493549 | H27: -5.45 | I27: 0.05846344709 | J27: 0.1098885 | K27: 0.04872644177 | L27: 1.051029349e-05
C28: 190.4 | D28: 50257.66667 | E28: -5.56 | F28: =T_+E28 -> 280.6455556 | G28: 0.05617283098 | H28: -5.56 | I28: 0.05869259856 | J28: 0.1099468 | K28: 0.04891270059 | L28: 9.312978192e-06
C29: 221.8 | D29: 54143.86486 | E29: -4.65 | F29: =T_+E29 -> 281.5555556 | G29: 0.05464150145 | H29: -4.65 | I29: 0.05683515993 | J29: 0.1094645 | K29: 0.04740265276 | L29: 1.051390838e-05
C30: 210.4 | D30: 57402.8 | E30: -5.66 | F30: =T_+E30 -> 280.5455556 | G30: 0.05634432069 | H30: -5.66 | I30: 0.05890204539 | J30: 0.1099998 | K30: 0.04908293453 | L30: 1.032704943e-05
C31: 195.4 | D31: 60578.18841 | E31: -7.4 | F31: =T_+E31 -> 278.8055556 | G31: 0.05943426589 | H31: -7.4 | I31: 0.06272553224 | J31: 0.110922 | K31: 0.05218918503 | L31: 1.019776676e-05
C32: 191.4 | D32: 64613.17391 | E32: -6.88 | F32: =T_+E32 -> 279.3255556 | G32: 0.05848941295 | H32: -6.88 | I32: 0.06154639213 | J32: 0.1106464 | K32: 0.05123151414 | L32: 9.805711806e-06
C33: 195 | D33: 66235.23077 | E33: -7.86 | F33: =T_+E33 -> 278.3455556 | G33: 0.0602858216 | H33: -7.86 | I33: 0.06379577933 | J33: 0.1111658 | K33: 0.05305820717 | L33: 1.03463504e-05
C34: 227.4 | D34: 69909.02899 | E34: -6.1 | F34: =T_+E34 -> 280.1055556 | G34: 0.05710659322 | H34: -6.1 | I34: 0.05983654115 | J34: 0.110233 | K34: 0.04984237418 | L34: 1.133415589e-05
C35: 229.2 | D35: 74088.43333 | E35: -4.83 | F35: =T_+E35 -> 281.3755556 | G35: 0.0549402739 | H35: -4.83 | I35: 0.05719574656 | J35: 0.1095599 | K35: 0.04769585134 | L35: 1.093188913e-05
C36: 217.1 | D36: 77090.3913 | E36: -5.28 | F36: =T_+E36 -> 280.9255556 | G36: 0.05569607448 | H36: -5.28 | I36: 0.05811183896 | J36: 0.1097984 | K36: 0.04844062869 | L36: 1.051646049e-05
C37: 221.8 | D37: 79481.46667 | E37: -4.75 | F37: =T_+E37 -> 281.4555556 | G37: 0.05480723779 | H37: -4.75 | I37: 0.05703507764 | J37: 0.1095175 | K37: 0.04756521203 | L37: 1.054996403e-05
C38: 231 | D38: 81432.92308 | E38: -4.39 | F38: =T_+E38 -> 281.8155556 | G38: 0.05421347404 | H38: -4.39 | I38: 0.05632010654 | J38: 0.1093267 | K38: 0.04698381131 | L38: 1.085326041e-05
C39: 241.1 | D39: 83850.6875 | E39: -3 | F39: =T_+E39 -> 283.2055556 | G39: 0.05199414465 | H39: -3 | I39: 0.05367843735 | J39: 0.10859 | K39: 0.04483478221 | L39: 1.080966599e-05
C40: 236.4 | D40: 85294 | E40: -3.91 | F40: =T_+E40 -> 282.2955556 | G40: 0.05343409251 | H40: -3.91 | I40: 0.0553868903 | J40: 0.1090723 | K40: 0.04622478782 | L40: 1.092753984e-05
C41: 228.1 | D41: 85982.3 | E41: -4.4 | F41: =T_+E41 -> 281.8055556 | G41: 0.05422985992 | H41: -4.4 | I41: 0.05633979079 | J41: 0.109332 | K41: 0.04699981949 | L41: 1.072065883e-05
C42: 214.2 | D42: 86706.53846 | E42: -4.43 | F42: =T_+E42 -> 281.7755556 | G42: 0.05427905424 | H42: -4.43 | I42: 0.05639890351 | J42: 0.1093479 | K42: 0.04704789235 | L42: 1.007765854e-05
C43: 217 | D43: 87589.5 | E43: -4.93 | F43: =T_+E43 -> 281.2755556 | G43: 0.0551071301 | H43: -4.93 | I43: 0.05739750649 | J43: 0.1096129 | K43: 0.0478598946 | L43: 1.038559713e-05
C44: 208 | D44: 88676.55556 | E44: -6.68 | F44: =T_+E44 -> 279.5255556 | G44: 0.05813094358 | H44: -6.68 | I44: 0.06110133779 | J44: 0.1105404 | K44: 0.05086998752 | L44: 1.05809574e-05
C45: 224.3 | D45: 90504.81818 | E45: -4.94 | F45: =T_+E45 -> 281.2655556 | G45: 0.0551238501 | H45: -4.94 | I45: 0.05741773916 | J45: 0.1096182 | K45: 0.04787634458 | L45: 1.073866409e-05
C46: 228.4 | D46: 92041.09091 | E46: -4.7 | F46: =T_+E46 -> 281.5055556 | G46: 0.05472429216 | H46: -4.7 | I46: 0.05693499157 | J46: 0.109491 | K46: 0.04748382991 | L46: 1.084530675e-05
C47: 232.1 | D47: 93849.33333 | E47: -3.95 | F47: =T_+E47 -> 282.2555556 | G47: 0.05349851015 | H47: -3.95 | I47: 0.05546379624 | J47: 0.1090935 | K47: 0.0462873451 | L47: 1.07432928e-05
C48: 225.9 | D48: 97547.75758 | E48: -3.68 | F48: =T_+E48 -> 282.5255556 | G48: 0.05306554482 | H48: -3.68 | I48: 0.05494767883 | J48: 0.1089504 | K48: 0.04586749931 | L48: 1.036146809e-05
C49: 230.9 | D49: 100297.6667 | E49: -2.81 | F49: =T_+E49 -> 283.3955556 | G49: 0.05169957275 | H49: -2.81 | I49: 0.05333144853 | J49: 0.1084893 | K49: 0.0445523979 | L49: 1.028714868e-05
C50: 236.9 | D50: 101293.8235 | E50: -3.08 | F50: =T_+E50 -> 283.1255556 | G50: 0.0521187954 | H50: -3.08 | I50: 0.05382552561 | J50: 0.1086324 | K50: 0.04495447721 | L50: 1.064971565e-05
C51: 228.2 | D51: 102561.44 | E51: -4.11 | F51: =T_+E51 -> 282.0955556 | G51: 0.0537571419 | H51: -4.11 | I51: 0.05577297838 | J51: 0.1091783 | K51: 0.04653883004 | L51: 1.062016102e-05
C52: 236.9 | D52: 104267.5926 | E52: -3.71 | F52: =T_+E52 -> 282.4955556 | G52: 0.05311343778 | H52: -3.71 | I52: 0.05500467907 | J52: 0.1089663 | K52: 0.04591386988 | L52: 1.087699578e-05
C53: 230.7 | D53: 105696.6 | E53: -4.4 | F53: =T_+E53 -> 281.8055556 | G53: 0.05422985992 | H53: -4.4 | I53: 0.05633979079 | J53: 0.109332 | K53: 0.04699981949 | L53: 1.084285836e-05
C54: 238.2 | D54: 107187.8929 | E54: -6.27 | F54: =T_+E54 -> 279.9355556 | G54: 0.0574045114 | H54: -6.27 | I54: 0.06020332412 | J54: 0.1103231 | K54: 0.05014040522 | L54: 1.194344452e-05
C55: 245.7 | D55: 108620.7778 | E55: -6.3 | F55: =T_+E55 -> 279.9055556 | G55: 0.057457284 | H55: -6.3 | I55: 0.06026838641 | J55: 0.110339 | K55: 0.05019326931 | L55: 1.233248627e-05
C56: 251.3 | D56: 109579.25 | E56: -6.08 | F56: =T_+E56 -> 280.1255556 | G56: 0.05707166953 | H56: -6.08 | I56: 0.05979360195 | J56: 0.1102224 | K56: 0.04980748215 | L56: 1.251662027e-05
C57: 256.8 | D57: 110791.875 | E57: -5.94 | F57: =T_+E57 -> 280.2655556 | G57: 0.05682793986 | H57: -5.94 | I57: 0.05949426713 | J57: 0.1101482 | K57: 0.04956423588 | L57: 1.272809577e-05
C58: 266.3 | D58: 111971.6 | E58: -4.86 | F58: =T_+E58 -> 281.3455556 | G58: 0.05499026519 | H58: -4.86 | I58: 0.05725616651 | J58: 0.1095758 | K58: 0.04774497731 | L58: 1.271448746e-05
C59: 261.4 | D59: 112990.9167 | E59: -4.39 | F59: =T_+E59 -> 281.8155556 | G59: 0.05421347404 | H59: -4.39 | I59: 0.05632010654 | J59: 0.1093267 | K59: 0.04698381131 | L59: 1.228156828e-05
C60: 274.6 | D60: 113734.3333 | E60: -4.06 | F60: =T_+E60 -> 282.1455556 | G60: 0.05367615391 | H60: -4.06 | I60: 0.05567609028 | J60: 0.1091518 | K60: 0.04646002449 | L60: 1.275792273e-05
C61: 273.3 | D61: 114376 | E61: -2.47 | F61: =T_+E61 -> 283.7355556 | G61: 0.05117757509 | H61: -2.47 | I61: 0.05271865991 | J61: 0.1083091 | K61: 0.04405364118 | L61: 1.203986014e-05
C62: 262.5 | D62: 115447.5 | E62: -1.62 | F62: =T_+E62 -> 284.5855556 | G62: 0.04990081653 | H62: -1.62 | I62: 0.05123111879 | J62: 0.1078586 | K62: 0.04284258314 | L62: 1.124617807e-05
C63: 267.6 | D63: 116848.9091 | E63: -1.19 | F63: =T_+E63 -> 285.0155556 | G63: 0.04926993757 | H63: -1.19 | I63: 0.05050199858 | J63: 0.1076307 | K63: 0.0422488081 | L63: 1.130578105e-05
C64: 273.8 | D64: 117946.4 | E64: -0.95 | F64: =T_+E64 -> 285.2555556 | G64: 0.04892210975 | H64: -0.95 | I64: 0.05010167847 | J64: 0.1075035 | K64: 0.04192274925 | L64: 1.147844875e-05
C65: 272 | D65: 118798.8 | E65: -0.86 | F65: =T_+E65 -> 285.3455556 | G65: 0.04879245824 | H65: -0.86 | I65: 0.04995276465 | J65: 0.1074558 | K65: 0.04180145064 | L65: 1.136999457e-05
C66: 265.2 | D66: 119588.3846 | E66: -0.24 | F66: =T_+E66 -> 285.9655556 | G66: 0.047910766 | H66: -0.24 | I66: 0.04894445793 | J66: 0.1071272 | K66: 0.04097999857 | L66: 1.086789562e-05
C67: 277.7 | D67: 120287.0833 | E67: -0.64 | F67: =T_+E67 -> 285.5655556 | G67: 0.04847731834 | H67: -0.64 | I67: 0.04959149277 | J67: 0.1073392 | K67: 0.0415071541 | L67: 1.152653669e-05
C68: 272.2 | D68: 121284.1667 | E68: -0.39 | F68: =T_+E68 -> 285.8155556 | G68: 0.04812225745 | H68: -0.39 | I68: 0.04918562445 | J68: 0.1072067 | K68: 0.04117649399 | L68: 1.120824167e-05
C69: 276.5 | D69: 122261.3333 | E69: 0.63 | F69: =T_+E69 -> 286.8355556 | G69: =0.034*EXP(2400*(1/F69-1/298.15)) -> 0.04670655939 | H69: 0.63 | I69: =10^(108.3865+0.01985076*F69-6919.53/F69-40.45154*LOG10(F69)+669365/F69^2) -> 0.04757965394 | J69: =0.091+0.021+(-0.005-0.00053*E69) -> 0.1066661 | K69: =I69*1/10^(J69*0.72) -> 0.0398677464 | L69: =K69*C69/1000000 -> 1.102343188e-05
C70: 268.7 | D70: 123175.2727 | E70: 0.65 | F70: =T_+E70 -> 286.8555556 | G70: 0.04667932008 | H70: 0.65 | I70: 0.04754894654 | J70: 0.1066555 | K70: 0.03984271634 | L70: 1.070573788e-05
C71: 266.6 | D71: 123797.5 | E71: 0.62 | F71: =T_+E71 -> 286.8255556 | G71: 0.04672018644 | H71: 0.62 | I71: 0.0475950187 | J71: 0.1066714 | K71: 0.03988027035 | L71: 1.063208008e-05
C72: 266.3 | D72: 124045.1111 | E72: 0.24 | F72: =T_+E72 -> 286.4455556 | G72: 0.04724168379 | H72: 0.24 | I72: 0.04818438695 | J72: 0.1068728 | K72: 0.04036062862 | L72: 1.07480354e-05
C73: 279.8 | D73: 124404.1667 | E73: 0.92 | F73: =T_+E73 -> 287.1255556 | G73: 0.04631350878 | H73: 0.92 | I73: 0.04713726615 | J73: 0.1065124 | K73: 0.03950712831 | L73: 1.10540945e-05
C74: 277.2 | D74: 124682.1667 | E74: 0.76 | F74: =T_+E74 -> 286.9655556 | G74: 0.04652985519 | H74: 0.76 | I74: 0.04738058154 | J74: 0.1065972 | K74: 0.03970547564 | L74: 1.100635785e-05
C75: 273.8 | D75: 125268.5882 | E75: 1.26 | F75: =T_+E75 -> 287.4655556 | G75: 0.04585789676 | H75: 1.26 | I75: 0.04662636161 | J75: 0.1063322 | K75: 0.03909060064 | L75: 1.070300645e-05
C76: 267.1 | D76: 125848.8333 | E76: 2.07 | F76: =T_+E76 -> 288.2755556 | G76: 0.04479465325 | H76: 2.07 | I76: 0.04544200854 | J76: 0.1059029 | K76: 0.03812478743 | L76: 1.018313072e-05
C77: 262.5 | D77: 126214.5556 | E77: 2.33 | F77: =T_+E77 -> 288.5355556 | G77: 0.04445986085 | H77: 2.33 | I77: 0.04507137781 | J77: 0.1057651 | K77: 0.03782247656 | L77: 9.928400097e-06
C78: 262.6 | D78: 126621 | E78: 2.4 | F78: =T_+E78 -> 288.6055556 | G78: 0.04437025521 | H78: 2.4 | I78: 0.04497236677 | J78: 0.105728 | K78: 0.03774171092 | L78: 9.910973288e-06
C79: 275.4 | D79: 127106.8462 | E79: 2.68 | F79: =T_+E79 -> 288.8855556 | G79: 0.04401406527 | H79: 2.68 | I79: 0.04457956857 | J79: 0.1055796 | K79: 0.0374212723 | L79: 1.030581839e-05
C80: 274.1 | D80: 127835.3889 | E80: 1.42 | F80: =T_+E80 -> 287.6255556 | G80: 0.04564541387 | H80: 1.42 | I80: 0.04638878868 | J80: 0.1062474 | K80: 0.03889689229 | L80: 1.066163818e-05
C81: 287.1 | D81: 128308.3333 | E81: 1.83 | F81: =T_+E81 -> 288.0355556 | G81: 0.0451064718 | H81: 1.83 | I81: 0.04578819536 | J81: 0.1060301 | K81: 0.03840712997 | L81: 1.102668702e-05
C82: 286.8 | D82: 128502 | E82: 0.67 | F82: =T_+E82 -> 286.8755556 | G82: 0.04665210044 | H82: 0.67 | I82: 0.0475182686 | J82: 0.1066449 | K82: 0.03981771008 | L82: 1.141971925e-05
C83: 282.7 | D83: 128803.8571 | E83: 1.95 | F83: =T_+E83 -> 288.1555556 | G83: 0.04495022721 | H83: 1.95 | I83: 0.04561461042 | J83: 0.1059665 | K83: 0.03826556146 | L83: 1.081767423e-05
C84: 264.1 | D84: 129169 | E84: 1.24 | F84: =T_+E84 -> 287.4455556 | G84: 0.04588454326 | H84: 1.24 | I84: 0.0466561858 | J84: 0.1063428 | K84: 0.03911491725 | L84: 1.033024965e-05
C85: 263.4 | D85: 129541.5714 | E85: 0.53 | F85: =T_+E85 -> 286.7355556 | G85: 0.04684305177 | H85: 0.53 | I85: 0.04773363409 | J85: 0.1067191 | K85: 0.03999325457 | L85: 1.053422325e-05
C86: 259 | D86: 129917.4444 | E86: -0.54 | F86: =T_+E86 -> 285.6655556 | G86: 0.04833490606 | H86: -0.54 | I86: 0.04942855332 | J86: 0.1072862 | K86: 0.04137441209 | L86: 1.071597273e-05
C87: 240.4 | D87: 130924.7857 | E87: -2.57 | F87: =T_+E87 -> 283.6355556 | G87: 0.05133042467 | H87: -2.57 | I87: 0.05289781733 | J87: 0.1083621 | K87: 0.04419946784 | L87: 1.062555207e-05
C88: 224 | D88: 132519 | E88: -5.28 | F88: =T_+E88 -> 280.9255556 | G88: 0.05569607448 | H88: -5.28 | I88: 0.05811183896 | J88: 0.1097984 | K88: 0.04844062869 | L88: 1.085070083e-05
C89: 208.9 | D89: 133727.4167 | E89: -6.9 | F89: =T_+E89 -> 279.3055556 | G89: 0.05852540958 | H89: -6.9 | I89: 0.06159115337 | J89: 0.110657 | K89: 0.05126787265 | L89: 1.07098586e-05
C90: 204.6 | D90: 134539.8889 | E90: -7.33 | F90: =T_+E90 -> 278.8755556 | G90: 0.05930598405 | H90: -7.33 | I90: 0.06256492531 | J90: 0.1108849 | K90: 0.05205875797 | L90: 1.065122188e-05
C91: 198.1 | D91: 135257.75 | E91: -7.39 | F91: =T_+E91 -> 278.8155556 | G91: 0.05941591899 | H91: -7.39 | I91: 0.06270255226 | J91: 0.1109167 | K91: 0.05217052353 | L91: 1.033498071e-05
C92: 201.8 | D92: 135752.75 | E92: -7.51 | F92: =T_+E92 -> 278.6955556 | G92: 0.05963654329 | H92: -7.51 | I92: 0.06297911 | J92: 0.1109803 | K92: 0.05239510355 | L92: 1.05733319e-05
C93: 202.5 | D93: 136104.8 | E93: -7.82 | F93: =T_+E93 -> 278.3855556 | G93: 0.06021117906 | H93: -7.82 | I93: 0.0637016817 | J93: 0.1111446 | K93: 0.05298180937 | L93: 1.07288164e-05
C94: 195.9 | D94: 136461.5 | E94: -7.72 | F94: =T_+E94 -> 278.4855556 | G94: 0.06002507024 | H94: -7.72 | I94: 0.06346730408 | J94: 0.1110916 | K94: 0.05279151179 | L94: 1.034185716e-05
C95: 194.4 | D95: 136975.375 | E95: -8.89 | F95: =T_+E95 -> 277.3155556 | G95: 0.062247726 | H95: -8.89 | I95: 0.06628874274 | J95: 0.1117117 | K95: 0.05508170286 | L95: 1.070788304e-05
C96: 193.4 | D96: 137496.75 | E96: -8.59 | F96: =T_+E96 -> 277.6155556 | G96: 0.06166828565 | H96: -8.59 | I96: 0.06554850552 | J96: 0.1115527 | K96: 0.05448097239 | L96: 1.053662006e-05
C97: 190.2 | D97: 137916.6667 | E97: -8.3 | F97: =T_+E97 -> 277.9055556 | G97: 0.06111446057 | H97: -8.3 | I97: 0.06484408774 | J97: 0.111399 | K97: 0.05390922702 | L97: 1.025353498e-05
C98: 192.3 | D98: 138809.0833 | E98: -8.82 | F98: =T_+E98 -> 277.3855556 | G98: 0.06211192576 | H98: -8.82 | I98: 0.06611496021 | J98: 0.1116746 | K98: 0.05494067982 | L98: 1.056509273e-05
C99: 196.5 | D99: 140316.4706 | E99: -8.21 | F99: =T_+E99 -> 277.9955556 | G99: 0.06094383046 | H99: -8.21 | I99: 0.06462767055 | J99: 0.1113513 | K99: 0.05373355402 | L99: 1.055864337e-05
C100: 190.4 | D100: 141771.5455 | E100: -8.09 | F100: =T_+E100 -> 278.1155556 | G100: 0.06071723538 | H100: -8.09 | I100: 0.06434071454 | J100: 0.1112877 | K100: 0.05350061023 | L100: 1.018651619e-05
C101: 197 | D101: 143839.25 | E101: -8 | F101: =T_+E101 -> 278.2055556 | G101: 0.06054796982 | H101: -8 | I101: 0.06412668999 | J101: 0.11124 | K101: 0.0533268614 | L101: 1.05053917e-05
C102: 191.9 | D102: 147794.3556 | E102: -6.86 | F102: =T_+E102 -> 279.3455556 | G102: 0.05845344361 | H102: -6.86 | I102: 0.06150167759 | J102: 0.1106358 | K102: 0.0511951932 | L102: 9.824357575e-06
C103: 189 | D103: 152301.3077 | E103: -8.84 | F103: =T_+E103 -> 277.3655556 | G103: 0.06215068858 | H103: -8.84 | I103: 0.06616454614 | J103: 0.1116852 | K103: 0.05498091887 | L103: 1.039139367e-05
C104: 185.5 | D104: 154849.25 | E104: -8.87 | F104: =T_+E104 -> 277.3355556 | G104: 0.06220888866 | H104: -8.87 | I104: 0.06623902432 | J104: 0.1117011 | K104: 0.05504135729 | L104: 1.021017178e-05
C105: 204.4 | D105: 157909.3696 | E105: -7.34 | F105: =T_+E105 -> 278.8655556 | G105: 0.05932428912 | H105: -7.34 | I105: 0.06258783306 | J105: 0.1108902 | K105: 0.05207736137 | L105: 1.064461266e-05
C106: 191.6 | D106: 161703.8333 | E106: -7.39 | F106: =T_+E106 -> 278.8155556 | G106: 0.05941591899 | H106: -7.39 | I106: 0.06270255226 | J106: 0.1109167 | K106: 0.05217052353 | L106: 9.995872307e-06
C107: 183.8 | D107: 164097.65 | E107: -7.97 | F107: =T_+E107 -> 278.2355556 | G107: 0.06049167717 | H107: -7.97 | I107: 0.06405557444 | J107: 0.1112241 | K107: 0.05326912685 | L107: 9.790865516e-06
C108: 197.9 | D108: 167627.641 | E108: -6.05 | F108: =T_+E108 -> 280.1555556 | G108: 0.05701933336 | H108: -6.05 | I108: 0.05972927636 | J108: 0.1102065 | K108: 0.04975521109 | L108: 9.846556276e-06
C109: 197.8 | D109: 171171.7826 | E109: -6.89 | F109: =T_+E109 -> 279.3155556 | G109: 0.05850740785 | H109: -6.89 | I109: 0.06156876691 | J109: 0.1106517 | K109: 0.05124968869 | L109: 1.013718842e-05
C110: 190.3 | D110: 173977.4 | E110: -7.23 | F110: =T_+E110 -> 278.9755556 | G110: 0.05912331563 | H110: -7.23 | I110: 0.0623365071 | J110: 0.1108319 | K110: 0.05187325444 | L110: 9.871480321e-06
C111: 190.1 | D111: 175811.125 | E111: -7.49 | F111: =T_+E111 -> 278.7155556 | G111: 0.05959970256 | H111: -7.49 | I111: 0.06293289591 | J111: 0.1109697 | K111: 0.0523575761 | L111: 9.953175216e-06
C112: 207.7 | D112: 177329.1667 | E112: -7 | F112: =T_+E112 -> 279.2055556 | G112: 0.05870580293 | H112: -7 | I112: 0.06181566189 | J112: 0.11071 | K112: 0.05145023038 | L112: 1.068621285e-05
C113: 213.2 | D113: 179569.1053 | E113: -6.2 | F113: =T_+E113 -> 280.0055556 | G113: 0.05728160761 | H113: -6.2 | I113: 0.0600519048 | J113: 0.110286 | K113: 0.05001737178 | L113: 1.066370366e-05
C114: 217.7 | D114: 181078 | E114: -8 | F114: =T_+E114 -> 278.2055556 | G114: 0.06054796982 | H114: -8 | I114: 0.06412668999 | J114: 0.11124 | K114: 0.0533268614 | L114: 1.160925773e-05
C115: 199.8 | D115: 182358.1429 | E115: -7.79 | F115: =T_+E115 -> 278.4155556 | G115: 0.06015527186 | H115: -7.79 | I115: 0.06363123865 | J115: 0.1111287 | K115: 0.05292461571 | L115: 1.057433822e-05
C116: 203.5 | D116: 184085.6923 | E116: -8.49 | F116: =T_+E116 -> 277.7155556 | G116: 0.06147661601 | H116: -8.49 | I116: 0.0653043759 | J116: 0.1114997 | K116: 0.05428283226 | L116: 1.104655637e-05
C117: 210.7 | D117: 185998.4375 | E117: -7.01 | F117: =T_+E117 -> 279.1955556 | G117: 0.05872387994 | H117: -7.01 | I117: 0.0618381773 | J117: 0.1107153 | K117: 0.05146851811 | L117: 1.084441676e-05
C118: 231.4 | D118: 188186.2353 | E118: -6.49 | F118: =T_+E118 -> 279.7155556 | G118: 0.05779290345 | H118: -6.49 | I118: 0.06068280685 | J118: 0.1104397 | K118: 0.05052997421 | L118: 1.169263603e-05
C119: 231.5 | D119: 190200.8667 | E119: -5.36 | F119: =T_+E119 -> 280.8455556 | G119: 0.05583177939 | H119: -5.36 | I119: 0.05827691975 | J119: 0.1098408 | K119: 0.04857482145 | L119: 1.124507117e-05
C120: 218 | D120: 191770.2308 | E120: -6.78 | F120: =T_+E120 -> 279.4255556 | G120: 0.05830983866 | H120: -6.78 | I120: 0.06132328508 | J120: 0.1105934 | K120: 0.05105028417 | L120: 1.112896195e-05
C121: 220.1 | D121: 194048.52 | E121: -5.72 | F121: =T_+E121 -> 280.4855556 | G121: 0.05644752461 | H121: -5.72 | I121: 0.05902823175 | J121: 0.1100316 | K121: 0.0491854922 | L121: 1.082572683e-05
C122: 242.6 | D122: 197316.7931 | E122: -2.8 | F122: =T_+E122 -> 283.4055556 | G122: 0.05168412619 | H122: -2.8 | I122: 0.05331327689 | J122: 0.108484 | K122: 0.04453760889 | L122: 1.080482392e-05
C123: 251 | D123: 200604 | E123: -2.49 | F123: =T_+E123 -> 283.7155556 | G123: 0.05120809994 | H123: -2.49 | I123: 0.05275442022 | J123: 0.1083197 | K123: 0.04408274912 | L123: 1.106477003e-05
C124: 239.1 | D124: 202661.3 | E124: -3.03 | F124: =T_+E124 -> 283.1755556 | G124: 0.05204084546 | H124: -3.03 | I124: 0.05373352655 | J124: 0.1086059 | K124: 0.04487961228 | L124: 1.07307153e-05
C125: 247.7 | D125: 203709.6364 | E125: -3.17 | F125: =T_+E125 -> 283.0355556 | G125: 0.05225946929 | H125: -3.17 | I125: 0.05399170469 | J125: 0.1086801 | K125: 0.04508970228 | L125: 1.116871925e-05
C126: 244.4 | D126: 204684.75 | E126: -4.35 | F126: =T_+E126 -> 281.8555556 | G126: 0.05414799166 | H126: -4.35 | I126: 0.05624146931 | J126: 0.1093055 | K126: 0.04691985898 | L126: 1.146721353e-05
C127: 232.2 | D127: 205398.3333 | E127: -4.39 | F127: =T_+E127 -> 281.8155556 | G127: 0.05421347404 | H127: -4.39 | I127: 0.05632010654 | J127: 0.1093267 | K127: 0.04698381131 | L127: 1.090964099e-05
C128: 228.7 | D128: 205901.5 | E128: -4.27 | F128: =T_+E128 -> 281.9355556 | G128: 0.05401731965 | H128: -4.27 | I128: 0.05608467248 | J128: 0.1092631 | K128: 0.04679233914 | L128: 1.070140796e-05
C129: 238.2 | D129: 207017.9333 | E129: -3.59 | F129: =T_+E129 -> 282.6155556 | G129: 0.05292218571 | H129: -3.59 | I129: 0.05477719347 | J129: 0.1089027 | K129: 0.04572880298 | L129: 1.089260087e-05
C130: 242.2 | D130: 208630.4167 | E130: -2.51 | F130: =T_+E130 -> 283.6955556 | G130: 0.0512386473 | H130: -2.51 | I130: 0.05279021608 | J130: 0.1083303 | K130: 0.04411188572 | L130: 1.068389872e-05
C131: 244.6 | D131: 209624.5 | E131: -2.33 | F131: =T_+E131 -> 283.8755556 | G131: 0.05096452992 | H131: -2.33 | I131: 0.05246932933 | J131: 0.1082349 | K131: 0.04385068531 | L131: 1.072587763e-05
C132: 247.3 | D132: 210359.25 | E132: -2.28 | F132: =T_+E132 -> 283.9255556 | G132: 0.05088870822 | H132: -2.28 | I132: 0.05238070144 | J132: 0.1082084 | K132: 0.04377853879 | L132: 1.082643264e-05
C133: 252 | D133: 210835 | E133: -2.61 | F133: =T_+E133 -> 283.5955556 | G133: =0.034*EXP(2400*(1/F133-1/298.15)) -> 0.05139172252 | H133: -2.61 | I133: =10^(108.3865+0.01985076*F133-6919.53/F133-40.45154*LOG10(F133)+669365/F133^2) -> 0.05296973 | J133: =0.091+0.021+(-0.005-0.00053*E133) -> 0.1083833 | K133: =I133*1/10^(J133*0.72) -> 0.04425799987 | L133: =K133*C133/1000000 -> 1.115301597e-05
C134: 257.4 | D134: 211543.0833 | E134: -1.65 | F134: =T_+E134 -> 284.5555556 | G134: 0.04994520327 | H134: -1.65 | I134: 0.05128256471 | J134: 0.1078745 | K134: 0.0428844749 | L134: 1.103846384e-05
C135: 251.2 | D135: 213166.5 | E135: -1.39 | F135: =T_+E135 -> 284.8155556 | G135: 0.04956213447 | H135: -1.39 | I135: 0.0508392107 | J135: 0.1077367 | K135: 0.04252343854 | L135: 1.068188776e-05
C136: 241.4 | D136: 214535 | E136: -1.45 | F136: =T_+E136 -> 284.7555556 | G136: 0.04965021141 | H136: -1.45 | I136: 0.05094102107 | J136: 0.1077685 | K136: 0.04260634952 | L136: 1.028517277e-05
C137: 240.3 | D137: 215216.1667 | E137: -2.11 | F137: =T_+E137 -> 284.0955556 | G137: 0.05063195567 | H137: -2.11 | I137: 0.05208100328 | J137: 0.1081183 | K137: 0.04353456064 | L137: 1.046135492e-05
C138: 242.7 | D138: 215666.75 | E138: -1.39 | F138: =T_+E138 -> 284.8155556 | G138: 0.04956213447 | H138: -1.39 | I138: 0.0508392107 | J138: 0.1077367 | K138: 0.04252343854 | L138: 1.032043853e-05
C139: 247.5 | D139: 216137.3333 | E139: -0.86 | F139: =T_+E139 -> 285.3455556 | G139: 0.04879245824 | H139: -0.86 | I139: 0.04995276465 | J139: 0.1074558 | K139: 0.04180145064 | L139: 1.034585903e-05
C140: 251.7 | D140: 216674.6 | E140: -1.18 | F140: =T_+E140 -> 285.0255556 | G140: 0.04925538376 | H140: -1.18 | I140: 0.05048522457 | J140: 0.1076254 | K140: 0.04223514645 | L140: 1.063058636e-05
C141: 251.2 | D141: 217074.25 | E141: -1.85 | F141: =T_+E141 -> 284.3555556 | G141: 0.05024236647 | H141: -1.85 | I141: 0.05162748668 | J141: 0.1079805 | K141: 0.04316532581 | L141: 1.084312984e-05
C142: 245.4 | D142: 217413.5 | E142: -2.2 | F142: =T_+E142 -> 284.0055556 | G142: 0.05076768341 | H142: -2.2 | I142: 0.05223935277 | J142: 0.108166 | K142: 0.04366347208 | L142: 1.071501605e-05
C143: 240.5 | D143: 217940.4286 | E143: -2.9 | F143: =T_+E143 -> 283.3055556 | G143: 0.05183884895 | H143: -2.9 | I143: 0.05349540161 | J143: 0.108537 | K143: 0.04468582828 | L143: 1.07469417e-05
C144: 212.2 | D144: 218947.2727 | E144: -4.99 | F144: =T_+E144 -> 281.2155556 | G144: 0.05520754411 | H144: -4.99 | I144: 0.0575190576 | J144: 0.1096447 | K144: 0.04795871939 | L144: 1.017684025e-05
C145: 216.2 | D145: 219882.2 | E145: -4.49 | F145: =T_+E145 -> 281.7155556 | G145: 0.05437760832 | H145: -4.49 | I145: 0.05651739934 | J145: 0.1093797 | K145: 0.04714425591 | L145: 1.019258813e-05
C146: 207.2 | D146: 220388.25 | E146: -5.78 | F146: =T_+E146 -> 280.4255556 | G146: 0.05655096185 | H146: -5.78 | I146: 0.0591548086 | J146: 0.1100634 | K146: 0.04928836427 | L146: 1.021254908e-05
C147: 208.9 | D147: 220760.3333 | E147: -6.02 | F147: =T_+E147 -> 280.1855556 | G147: 0.05696705638 | H147: -6.02 | I147: 0.05966505043 | J147: 0.1101906 | K147: 0.04970302027 | L147: 1.038296094e-05
C148: 205.7 | D148: 221211.6 | E148: -7.07 | F148: =T_+E148 -> 279.1355556 | G148: 0.05883248621 | H148: -7.07 | I148: 0.06197351718 | J148: 0.1107471 | K148: 0.05157844352 | L148: 1.060968583e-05
C149: 203.4 | D149: 222193 | E149: -7.63 | F149: =T_+E149 -> 278.5755556 | G149: 0.05985817794 | H149: -7.63 | I149: 0.06325741731 | J149: 0.1110439 | K149: 0.05262109104 | L149: 1.070312992e-05
C150: 215.7 | D150: 223151.75 | E150: -7.36 | F150: =T_+E150 -> 278.8455556 | G150: 0.05936092016 | H150: -7.36 | I150: 0.06263368463 | J150: 0.1109008 | K150: 0.05211459718 | L150: 1.124111861e-05
C151: 236.9 | D151: 223978.1429 | E151: -5.88 | F151: =T_+E151 -> 280.3255556 | G151: 0.05672387741 | H151: -5.88 | I151: 0.05936664176 | J151: 0.1101164 | K151: 0.04946051961 | L151: 1.17171971e-05
C152: 234.5 | D152: 224885.4 | E152: -5.72 | F152: =T_+E152 -> 280.4855556 | G152: 0.05644752461 | H152: -5.72 | I152: 0.05902823175 | J152: 0.1100316 | K152: 0.0491854922 | L152: 1.153399792e-05
C153: 233.1 | D153: 225314 | E153: -5.58 | F153: =T_+E153 -> 280.6255556 | G153: 0.05620707734 | H153: -5.58 | I153: 0.0587344018 | J153: 0.1099574 | K153: 0.04894667803 | L153: 1.140947065e-05
C154: 224.5 | D154: 225562.3333 | E154: -6.33 | F154: =T_+E154 -> 279.8755556 | G154: 0.05751011644 | H154: -6.33 | I154: 0.06033354995 | J154: 0.1103549 | K154: 0.0502462149 | L154: 1.128027524e-05
C155: 232.4 | D155: 226154.3333 | E155: -7.62 | F155: =T_+E155 -> 278.5855556 | G155: 0.05983966967 | H155: -7.62 | I155: 0.06323415789 | J155: 0.1110386 | K155: 0.05260220473 | L155: 1.222475238e-05
C156: 233.9 | D156: 226945.6 | E156: -6.5 | F156: =T_+E156 -> 279.7055556 | G156: 0.05781063451 | H156: -6.5 | I156: 0.06070473188 | J156: 0.110445 | K156: 0.05054778682 | L156: 1.182312734e-05
C157: 241.7 | D157: 227510.6667 | E157: -6.81 | F157: =T_+E157 -> 279.3955556 | G157: 0.05836363949 | H157: -6.81 | I157: 0.06139009509 | J157: 0.1106093 | K157: 0.0511045549 | L157: 1.235197092e-05
C158: 245.2 | D158: 229162.4118 | E158: -5.07 | F158: =T_+E158 -> 281.1355556 | G158: 0.05534178104 | H158: -5.07 | I158: 0.05768170629 | J158: 0.1096871 | K158: 0.04809095338 | L158: 1.179190177e-05
C159: 252.2 | D159: 230969 | E159: -4.38 | F159: =T_+E159 -> 281.8255556 | G159: 0.05419709428 | H159: -4.38 | I159: 0.05630043227 | J159: 0.1093214 | K159: 0.04696781117 | L159: 1.184528198e-05
C160: 241.4 | D160: 231648 | E160: -3.91 | F160: =T_+E160 -> 282.2955556 | G160: 0.05343409251 | H160: -3.91 | I160: 0.0553868903 | J160: 0.1090723 | K160: 0.04622478782 | L160: 1.115866378e-05
C161: 247.4 | D161: 232219 | E161: -3.66 | F161: =T_+E161 -> 282.5455556 | G161: 0.05303364582 | H161: -3.66 | I161: 0.05490972645 | J161: 0.1089398 | K161: 0.04583662411 | L161: 1.133998081e-05
C162: 243.1 | D162: 232772.4 | E162: -2.59 | F162: =T_+E162 -> 283.6155556 | G162: 0.05136106229 | H162: -2.59 | I162: 0.05293375578 | J162: 0.1083727 | K162: 0.04422871944 | L162: 1.07520017e-05
C163: 239.2 | D163: 233312.75 | E163: -2.22 | F163: =T_+E163 -> 283.9855556 | G163: 0.05079790622 | H163: -2.22 | I163: 0.05227463744 | J163: 0.1081766 | K163: 0.04369219642 | L163: 1.045117338e-05
C164: 245.7 | D164: 233834 | E164: -2.65 | F164: =T_+E164 -> 283.5555556 | G164: 0.05145311088 | H164: -2.65 | I164: 0.05304178588 | J164: 0.1084045 | K164: 0.04431664739 | L164: 1.088860026e-05
C165: 245.9 | D165: 234267 | E165: -2.44 | F165: =T_+E165 -> 283.7655556 | G165: 0.05113182999 | H165: -2.44 | I165: 0.052665086 | J165: 0.1082932 | K165: 0.04401003295 | L165: 1.08220671e-05
C166: 247.4 | D166: 234552.3333 | E166: -2.24 | F166: =T_+E166 -> 283.9655556 | G166: 0.05082815127 | H166: -2.24 | I166: 0.05230995709 | J166: 0.1081872 | K166: 0.04372094897 | L166: 1.081656277e-05
C167: 252.9 | D167: 234911 | E167: -1.89 | F167: =T_+E167 -> 284.3155556 | G167: 0.05030206132 | H167: -1.89 | I167: 0.05169688007 | J167: 0.1080017 | K167: 0.04322182594 | L167: 1.093079978e-05
C168: 259.8 | D168: 235623 | E168: -0.6 | F168: =T_+E168 -> 285.6055556 | G168: 0.04842029118 | H168: -0.6 | I168: 0.04952622186 | J168: 0.107318 | K168: 0.0414539805 | L168: 1.076974413e-05
C169: 279 | D169: 236961 | E169: 1.55 | F169: =T_+E169 -> 287.7555556 | G169: 0.0454736696 | H169: 1.55 | I169: 0.04619708862 | J169: 0.1061785 | K169: 0.03874057718 | L169: 1.080862103e-05
C170: 263.8 | D170: 238311.3636 | E170: -1.29 | F170: =T_+E170 -> 284.9155556 | G170: 0.04941576877 | H170: -1.29 | I170: 0.05067019139 | J170: 0.1076837 | K170: 0.04238578987 | L170: 1.118137137e-05
C171: 252.4 | D171: 239064.75 | E171: -2.22 | F171: =T_+E171 -> 283.9855556 | G171: 0.05079790622 | H171: -2.22 | I171: 0.05227463744 | J171: 0.1081766 | K171: 0.04369219642 | L171: 1.102791038e-05
C172: 249.9 | D172: 239376.3333 | E172: -2.59 | F172: =T_+E172 -> 283.6155556 | G172: 0.05136106229 | H172: -2.59 | I172: 0.05293375578 | J172: 0.1083727 | K172: 0.04422871944 | L172: 1.105275699e-05
C173: 230.4 | D173: 239788.6 | E173: -3.85 | F173: =T_+E173 -> 282.3555556 | G173: 0.05333764561 | H173: -3.85 | I173: 0.05527182204 | J173: 0.1090405 | K173: 0.04613118613 | L173: 1.062862528e-05
C174: 219.4 | D174: 240311.5 | E174: -4.82 | F174: =T_+E174 -> 281.3855556 | G174: 0.0549236226 | H174: -4.82 | I174: 0.0571756271 | J174: 0.1095546 | K174: 0.04767949255 | L174: 1.046088067e-05
C175: 214.7 | D175: 241243.6667 | E175: -5.65 | F175: =T_+E175 -> 280.5555556 | G175: 0.05632714268 | H175: -5.65 | I175: 0.0588810522 | J175: 0.1099945 | K175: 0.04906587207 | L175: 1.053444273e-05
C176: 200.2 | D176: 242762 | E176: -6.94 | F176: =T_+E176 -> 279.2655556 | G176: 0.05859748481 | H176: -6.94 | I176: 0.06168081612 | J176: 0.1106782 | K176: 0.05134070256 | L176: 1.027840865e-05
C177: 213.9 | D177: 243818.25 | E177: -6.97 | F177: =T_+E177 -> 279.2355556 | G177: 0.05865161305 | H177: -6.97 | I177: 0.06174818618 | J177: 0.1106941 | K177: 0.05139542397 | L177: 1.099348119e-05
C178: 195.4 | D178: 244444.75 | E178: -6.71 | F178: =T_+E178 -> 279.4955556 | G178: 0.05818454097 | H178: -6.71 | I178: 0.06116780064 | J178: 0.1105563 | K178: 0.05092397887 | L178: 9.95054547e-06
C179: 196.7 | D179: 245088.25 | E179: -6.86 | F179: =T_+E179 -> 279.3455556 | G179: 0.05845344361 | H179: -6.86 | I179: 0.06150167759 | J179: 0.1106358 | K179: 0.0511951932 | L179: 1.00700945e-05
C180: 199 | D180: 246376.9 | E180: -7.1 | F180: =T_+E180 -> 279.1055556 | G180: 0.05888688218 | H180: -7.1 | I180: 0.06204134649 | J180: 0.110763 | K180: 0.05163353447 | L180: 1.027507336e-05
C181: 201.9 | D181: 247677.25 | E181: -7.41 | F181: =T_+E181 -> 278.7955556 | G181: 0.05945261978 | H181: -7.41 | I181: 0.06274852429 | J181: 0.1109273 | K181: 0.05220785624 | L181: 1.054076618e-05
C182: 204 | D182: 248455.2 | E182: -6.11 | F182: =T_+E182 -> 280.0955556 | G182: 0.05712406495 | H182: -6.11 | I182: 0.05985802741 | J182: 0.1102383 | K182: 0.0498598336 | L182: 1.017140605e-05
C183: 203.9 | D183: 249663.5 | E183: -6.34 | F183: =T_+E183 -> 279.8655556 | G183: 0.05752774057 | H183: -6.34 | I183: 0.06035529367 | J183: 0.1103602 | K183: 0.05026388157 | L183: 1.024880545e-05
C184: 209.7 | D184: 250924.8333 | E184: -6.79 | F184: =T_+E184 -> 279.4155556 | G184: 0.05832776547 | H184: -6.79 | I184: 0.06134554348 | J184: 0.1105987 | K184: 0.05106836507 | L184: 1.070903616e-05
C185: 208.9 | D185: 252107.1429 | E185: -6.88 | F185: =T_+E185 -> 279.3255556 | G185: 0.05848941295 | H185: -6.88 | I185: 0.06154639213 | J185: 0.1106464 | K185: 0.05123151414 | L185: 1.07022633e-05
C186: 214.7 | D186: 253216 | E186: -5.6 | F186: =T_+E186 -> 280.6055556 | G186: 0.05624134948 | H186: -5.6 | I186: 0.05877624805 | J186: 0.109968 | K186: 0.0489806901 | L186: 1.051615416e-05
C187: 228.2 | D187: 254439.25 | E187: -6.43 | F187: =T_+E187 -> 279.7755556 | G187: 0.05768665781 | H187: -6.43 | I187: 0.0605514955 | J187: 0.1104079 | K187: 0.0504232908 | L187: 1.150659496e-05
C188: 199.9 | D188: 255511.5 | E188: -6.93 | F188: =T_+E188 -> 279.2755556 | G188: 0.05857945575 | H188: -6.93 | I188: 0.06165838288 | J188: 0.1106729 | K188: 0.05132248096 | L188: 1.025936394e-05
C189: 211.7 | D189: 256068.6667 | E189: -7.42 | F189: =T_+E189 -> 278.7855556 | G189: 0.05947098064 | H189: -7.42 | I189: 0.06277152841 | J189: 0.1109326 | K189: 0.05222653717 | L189: 1.105635792e-05
C190: 188.7 | D190: 256761.2 | E190: -7.85 | F190: =T_+E190 -> 278.3555556 | G190: 0.06026715028 | H190: -7.85 | I190: 0.06377223631 | J190: 0.1111605 | K190: 0.05303909275 | L190: 1.00084768e-05
C191: 194.2 | D191: 257851.5 | E191: -8.09 | F191: =T_+E191 -> 278.1155556 | G191: 0.06071723538 | H191: -8.09 | I191: 0.06434071454 | J191: 0.1112877 | K191: 0.05350061023 | L191: 1.038981851e-05
C192: 198.9 | D192: 258724 | E192: -8.3 | F192: =T_+E192 -> 277.9055556 | G192: 0.06111446057 | H192: -8.3 | I192: 0.06484408774 | J192: 0.111399 | K192: 0.05390922702 | L192: 1.072254525e-05
C193: 184.7 | D193: 259363.75 | E193: -8.26 | F193: =T_+E193 -> 277.9455556 | G193: 0.06103855242 | H193: -8.26 | I193: 0.06474777486 | J193: 0.1113778 | K193: 0.05383104763 | L193: 9.942594497e-06
C194: 190.4 | D194: 260141.75 | E194: -8.43 | F194: =T_+E194 -> 277.7755556 | G194: 0.06136196631 | H194: -8.43 | I194: 0.06515851979 | J194: 0.1114679 | K194: 0.05416444804 | L194: 1.031291091e-05
C195: 193.9 | D195: 260935.5 | E195: -8.42 | F195: =T_+E195 -> 277.7855556 | G195: 0.06134288363 | H195: -8.42 | I195: 0.0651342556 | J195: 0.1114626 | K195: 0.05414475365 | L195: 1.049866773e-05
C196: 194.2 | D196: 261866.6 | E196: -8.13 | F196: =T_+E196 -> 278.0755556 | G196: 0.06079265159 | H196: -8.13 | I196: 0.06443616408 | J196: 0.1113089 | K196: 0.05357809534 | L196: 1.040486612e-05
C197: 198.4 | D197: 262799.5 | E197: -8.53 | F197: =T_+E197 -> 277.6755556 | G197: =0.034*EXP(2400*(1/F197-1/298.15)) -> 0.06155319571 | H197: -8.53 | I197: =10^(108.3865+0.01985076*F197-6919.53/F197-40.45154*LOG10(F197)+669365/F197^2) -> 0.065401872 | J197: =0.091+0.021+(-0.005-0.00053*E197) -> 0.1115209 | K197: =I197*1/10^(J197*0.72) -> 0.05436196308 | L197: =K197*C197/1000000 -> 1.078541348e-05
C198: 193.2 | D198: 263600.75 | E198: -7.86 | F198: =T_+E198 -> 278.3455556 | G198: 0.0602858216 | H198: -7.86 | I198: 0.06379577933 | J198: 0.1111658 | K198: 0.05305820717 | L198: 1.025084563e-05
C199: 202.2 | D199: 264400.5 | E199: -8.57 | F199: =T_+E199 -> 277.6355556 | G199: 0.06162989292 | H199: -8.57 | I199: 0.06549957567 | J199: 0.1115421 | K199: 0.05444126081 | L199: 1.100802294e-05
C200: 211 | D200: 265590.1429 | E200: -7.66 | F200: =T_+E200 -> 278.5455556 | G200: 0.05991374511 | H200: -7.66 | I200: 0.06332726909 | J200: 0.1110598 | K200: 0.05267780909 | L200: 1.111501772e-05
C201: 215.4 | D201: 266905.2 | E201: -6.59 | F201: =T_+E201 -> 279.6155556 | G201: 0.05797051627 | H201: -6.59 | I201: 0.06090257076 | J201: 0.1104927 | K201: 0.05070851367 | L201: 1.092261384e-05
C202: 223.7 | D202: 268062.5 | E202: -6.65 | F202: =T_+E202 -> 279.5555556 | G202: 0.05807740706 | H202: -6.65 | I202: 0.06103497866 | J202: 0.1105245 | K202: 0.05081607964 | L202: 1.136755702e-05
... 84 more rows

Sheet Sheet1
A2: Number of cars: | B2: 1200000000
A3: Fuel efficiency: | C3: 25 | D3: mi/gal
A4: Travelled distance/day: | C4: 50 | D4: mi
A5: Daily fuel consumtion/car: | C5: =C4/C3 -> 2 | D5: gal
C6: =3.8*C5*0.8 -> 6.08 | D6: kg
A7: Energy content of fuel: | C7: 40000000 | D7: J/kg
A8: Daily energy released/car: | C8: =C6*C7 -> 243200000 | D8: J
A9: Efficiency of combustion engine: | C9: 0.4 | F9: Solar radiation: | G9: 1400 | H9: J/m2/s
A10: Daily heat dissipated/car: | C10: =(1-C9)*C8 -> 145920000 | D10: J | F10: Radius of Earth: | G10: 6371000 | H10: m
A11: Total daily heat dissipated: | B11: =B2*C10 -> 1.75104e+17 | C11: J/day | F11: Surface of Earth: | G11: =G10^2*PI() -> 1.27516118e+14 | H11: m2
A12: Total daily electricity produced: | B12: =500000000000000000000/365 -> 1.369863014e+18 | C12: J/day | F12: Surface of Earth exposed: | G12: =G11/2 -> 6.375805899e+13 | H12: m2
A13: Total daily energy dissipated: | B13: =SUM(B11:B12) -> 1.544967014e+18 | C13: J/day | F13: Length of 1 day: | G13: =3600*24 -> 86400 | H13: s
A14: Total daily energy dissipated/Solar radiation: | B14: =B13/G14 -> 0.0002003283186 | F14: Daily Solar energy: | G14: =G9*G13*G12 -> 7.712174815e+21 | H14: J
A17: Pertoleum reserves: | B17: 7.4e+21 | C17: J
A18: Natural gas reserves: | B18: 6e+21 | C18: J
A19: Coal reserves: | B19: 2.6e+22 | C19: J
A20: Total fossil reserves: | B20: =SUM(B17:B19) -> 3.94e+22 | C20: J
A21: Fossil fuel availability: | B21: =B20/(C8*B2+B12) -> 23710.61476 | C21: days
B22: =B21/365 -> 64.96058838 | C22: years
